{"text_format":"1","workbook":"xlsx","n_sheets":4,"sheets":["Order Form Actions","Sportswear","Order Form Dialog","Compatibility Report"],"not_rendered":{"charts":0,"images":117,"macros":1,"external_links":0,"defined_names":4,"comments":0,"pivot_tables":0},"unopened":[],"bounds":{"document_bytes":16777216,"sheet_cells":100000,"rows_first":2000,"rows_last":500,"rows_between":2000,"halvings":0,"cell_chars":16384,"cell_head_chars":4096},"cells_cut":0,"cells_raw":0,"read":"whole","date_system":"1900"}

{"sheet":"Order Form Actions","index":0,"n_rows":3,"n_cols":2,"rows_kept":3,"cut":false,"hidden":false,"merged":[]}
[]
[null,"lululemon Fall '20 - Sportswear - Sportswear"]
[null,"Order Form"]

{"sheet":"Sportswear","index":1,"n_rows":1039,"n_cols":33,"rows_kept":1039,"cut":false,"hidden":false,"merged":[]}
["Order Form",null,null,"Customer:","lululemon",null,null,null,null,null,null,null,null,null,null,null,null,"lululemon Fall 2020"]
["Vancouver Downtown",null,null,"P/O:","123456"]
[]
["Style",null,"Colour",null,"Ins.","Ship","CXL","Wholesale","Retail","Buy",null,"Sizes"]
[]
[null,null,null,"Coats + Jackets"]
[]
[null,null,null,null,null,null,null,null,null,null,null,"4/XS","6/S","8/M","10/L","12/XL",null,null,null,null,null,null,null,null,null,null,"Total","Wholesale","Retail"]
["53878088","lululemon: Always There Trench Coat","024","Frontier","",null,null,69.5,278.0,null,null,2.0,6.0,6.0,4.0,2.0,null,null,null,null,null,null,null,null,null,null,20.0,{"$f":"ROUND(AA9*H9,2)","v":1390},{"$f":"ROUND(AA9*I9,2)","v":5560}]
[null,"Polyutherance, Polyester, Nylon, Elastance","011","Iron Blue","",null,null,69.5,278.0,null,null,1.0,4.0,4.0,2.0,1.0,null,null,null,null,null,null,null,null,null,null,12.0,834,3336]
[]
[]
[]
[]
[null,null,null,null,null,null,null,null,null,null,null,"4/XS","6/S","8/M","10/L","12/XL",null,null,null,null,null,null,null,null,null,null,"Total","Wholesale","Retail"]
["54559810","lululemon: Define Jacket Ice Dye","070","Ice Wash Moss Green","",null,null,34.5,138.0,null,null,5.0,5.0,5.0,5.0,5.0,null,null,null,null,null,null,null,null,null,null,25.0,{"$f":"ROUND(AA16*H16,2)","v":862.5},{"$f":"ROUND(AA16*I16,2)","v":3450}]
[null,"Nulux",null,null,"",null,null,null,null,null,null,null,null,null,null,null,null,null,null,null,null,null,null,null,null,null,{"$f":"SUM(L17:P17)","v":0},0,0]
[null,null,null,null,"",null,null,null,null,null,null,null,null,null,null,null,null,null,null,null,null,null,null,null,null,null,0,0,0]
[]
[]
[]
[null,null,null,null,null,null,null,null,null,null,null,"4/XS","6/S","8/M","10/L","12/XL",null,null,null,null,null,null,null,null,null,null,"Total","Wholesale","Retail"]
["53791901","lululemon: Always Effortless Jacket","030","Medium Olive","",null,null,34.5,138.0,null,null,2.0,5.0,5.0,5.0,3.0,null,null,null,null,null,null,null,null,null,null,16.0,{"$f":"ROUND(AA23*H23,2)","v":552},{"$f":"ROUND(AA23*I23,2)","v":2208}]
[null,"Nylon, Polyester, Elastene","001","Black","",null,null,34.5,138.0,null,null,2.0,5.0,5.0,5.0,3.0,null,null,null,null,null,null,null,null,null,null,12.0,414,1656]
[null,null,"009","Grey Sage",null,null,null,34.5,138.0,null,null,1.0,2.0,3.0,2.0,2.0,null,null,null,null,null,null,null,null,null,null,16.0,552,2208]
[null,null,"024","Frontier",null,null,null,34.5,138.0,null,null,null,2.0,2.0,2.0,null,null,null,null,null,null,null,null,null,null,null,{"$f":"SUM(L26:P26)","v":6},207,828]
[null,null,"004","Pink",null,null,null,34.5,138.0,null,null,2.0,4.0,4.0,1.0,1.0,null,null,null,null,null,null,null,null,null,null,12,414,1656]
[null,null,null,null,null,null,null,null,null,null,null,null,null,null,null,null,null,null,null,null,null,null,null,null,null,null,0,0,0]
[]
[null,null,null,null,null,null,null,null,null,null,null,"4/XS","6/S","8/M","10/L","12/XL",null,null,null,null,null,null,null,null,null,null,"Total","Wholesale","Retail"]
["53146429","lululemon: Going Places Hooded Jacket","009","Grey Sage","",null,null,44.5,178.0,null,null,2.0,4.0,4.0,4.0,2.0,null,null,null,null,null,null,null,null,null,null,{"$f":"SUM(L31:P31)","v":16},{"$f":"ROUND(AA31*H31,2)","v":712},{"$f":"ROUND(AA31*I31,2)","v":2848}]
[null,"Cotton, Polyester, Elastane","001","Black","",null,null,44.5,178.0,null,null,2.0,4.0,4.0,4.0,2.0,null,null,null,null,null,null,null,null,null,null,16,712,2848]
[]
[]
[]
[]
[]
[null,null,null,null,null,null,null,null,null,null,null,"4/XS","6/S","8/M","10/L","12/XL",null,null,null,null,null,null,null,null,null,null,"Total","Wholesale","Retail"]
["53700670","lululemon: Down For It All Jacket","001","Black","",null,null,49.5,198.0,null,null,4.0,6.0,6.0,2.0,2.0,null,null,null,null,null,null,null,null,null,null,{"$f":"SUM(L39:P39)","v":20},{"$f":"ROUND(AA39*H39,2)","v":990},{"$f":"ROUND(AA39*I39,2)","v":3960}]
[null,"Nylon, Polyester, Elastene","034","Moss Green","",null,null,49.5,198.0,null,null,2.0,4.0,6.0,2.0,1.0,null,null,null,null,null,null,null,null,null,null,15,742.5,2970]
[null,null,"012","Porcelain Pink",null,null,null,49.5,198.0,null,null,null,1.0,2.0,1.0,null,null,null,null,null,null,null,null,null,null,null,4,198,792]
[]
[]
[]
[]
[null,null,null,null,null,null,null,null,null,null,null,"4/XS","6/S","8/M","10/L","12/XL",null,null,null,null,null,null,null,null,null,null,"Total","Wholesale","Retail"]
["52722765","lululemon: Another Mile Jacket","070","Cassis",null,null,null,57.0,228.0,null,null,2.0,4.0,5.0,3.0,1.0,null,null,null,null,null,null,null,null,null,null,{"$f":"SUM(L47:P47)","v":15},{"$f":"ROUND(AA47*H47,2)","v":855},{"$f":"ROUND(AA47*I47,2)","v":3420}]
[null,"Polyester, Nylon","001","Black",null,null,null,57.0,228.0,null,null,2.0,4.0,5.0,3.0,1.0,null,null,null,null,null,null,null,null,null,null,15,855,3420]
[null,null,"00","White",null,null,null,57.0,228.0,null,null,1.0,4.0,4.0,2.0,1.0,null,null,null,null,null,null,null,null,null,null,12,684,2736]
[]
[]
[]
[]
[null,null,null,null,null,null,null,null,null,null,null,"4/XS","6/S","8/M","10/L","12/XL",null,null,null,null,null,null,null,null,null,null,"Total","Wholesale","Retail"]
["53791901","lululemon: Non-Stop Bomber Reversible","001","Black ",null,null,null,37.0,148.0,null,null,2.0,4.0,4.0,4.0,2.0,null,null,null,null,null,null,null,null,null,null,{"$f":"SUM(L55:U55)","v":16},{"$f":"ROUND(AA55*H55,2)","v":592},{"$f":"ROUND(AA55*I55,2)","v":2368}]
[null,"Nylon, Polyester, Lycra® elastane","008","Pink Fawn ",null,null,null,37.0,148.0,null,null,2.0,3.0,4.0,3.0,2.0,null,null,null,null,null,null,null,null,null,null,14,518,2072]
[null,null,"024","Frontier",null,null,null,37.0,148.0,null,null,1.0,2.0,2.0,2.0,1.0,null,null,null,null,null,null,null,null,null,null,8,296,1184]
[null,null,"066","Parachute",null,null,null,37.0,148.0,null,null,1.0,2.0,4.0,1.0,null,null,null,null,null,null,null,null,null,null,null,8,296,1184]
[]
[]
[]
[null,null,null,null,null,null,null,null,null,null,null,"4/XS","6/S","8/M","10/L","12/XL",null,null,null,null,null,null,null,null,null,null,"Total","Wholesale","Retail"]
["53695367","lululemon: Pack it Down Jacket Long","044","Cherry Tint",null,null,null,62.0,248.0,null,null,2.0,6.0,6.0,4.0,null,null,null,null,null,null,null,null,null,null,null,{"$f":"SUM(L63:P63)","v":18},{"$f":"ROUND(AA63*H63,2)","v":1116},{"$f":"ROUND(AA63*I63,2)","v":4464}]
[null,"Polyester,  Grey goose down, Grey Goose Feathers","001","Black",null,null,null,62.0,248.0,null,null,4.0,6.0,6.0,4.0,2.0,null,null,null,null,null,null,null,null,null,null,22,1364,5456]
[]
[]
[]
[]
[]
[null,null,null,null,null,null,null,null,null,null,null,"4/XS","6/S","8/M","10/L","12/XL",null,null,null,null,null,null,null,null,null,null,"Total","Wholesale","Retail"]
[5.3147757E7,"lululemon: Rain Rebel Jacket","055","Chambray",null,null,null,57.0,228.0,null,null,2.0,4.0,4.0,4.0,2.0,null,null,null,null,null,null,null,null,null,null,{"$f":"SUM(L71:U71)","v":16},{"$f":"ROUND(AA71*H71,2)","v":912},{"$f":"ROUND(AA71*I71,2)","v":3648}]
[null,"Polyester","001","Black ",null,null,null,57.0,228.0,null,null,2.0,4.0,4.0,4.0,2.0,null,null,null,null,null,null,null,null,null,null,16,912,3648]
[null,null,"088","Misty Pink",null,null,null,57.0,228.0,null,null,null,1.0,2.0,1.0,null,null,null,null,null,null,null,null,null,null,null,4,228,912]
[null,null,"009","Grey Sage",null,null,null,57.0,228.0,null,null,null,2.0,2.0,1.0,1.0,null,null,null,null,null,null,null,null,null,null,6,342,1368]
[]
[]
[]
[null,null,null,null,null,null,null,null,null,null,null,"4/XS","6/S","8/M","10/L","12/XL",null,null,null,null,null,null,null,null,null,null,"Total","Wholesale","Retail"]
[5.2731437E7,"lululemon: Break a Trail Jacket","035","Cerulean Blue",null,null,null,62.0,248.0,null,null,1.0,4.0,4.0,2.0,1.0,null,null,null,null,null,null,null,null,null,null,{"$f":"SUM(L79:U79)","v":12},{"$f":"ROUND(AA79*H79,2)","v":744},{"$f":"ROUND(AA79*I79,2)","v":2976}]
[null,"Polyurethane, Polyester, Elastane","090","Incognito Camo Multi Grey",null,null,null,62.0,248.0,null,null,2.0,6.0,6.0,4.0,2.0,null,null,null,null,null,null,null,null,null,null,20,1240,4960]
[null,null,"00","White",null,null,null,62.0,248.0,null,null,2.0,6.0,6.0,4.0,2.0,null,null,null,null,null,null,null,null,null,null,20,1240,4960]
[null,null,"012","Porcelain Pink",null,null,null,62.0,248.0,null,null,1.0,2.0,2.0,1.0,null,null,null,null,null,null,null,null,null,null,null,6,372,1488]
[]
[]
[]
[null,null,null,null,null,null,null,null,null,null,null,null,null,null,null,null,null,null,null,null,null,null,null,null,null,null,null,null,null,"Subtotal for Coats + Jackets:",{"$f":"SUM(AA8:AA85)","v":418},{"$f":"ROUND(SUM(AB8:AB85),2)","v":21146},84584]
[]
[]
[]
[null,null,null,"Hoodies + Sweatshirts"]
[]
[null,null,null,null,null,null,null,null,null,null,null,"4/XS","6/S","8/M","10/L","12/XL",null,null,null,null,null,null,null,null,null,null,"Total","Wholesale","Retail"]
["53840278","lululemon: Sit in Lotus Hoodie Sweater","045","Heathered Pink Taupe","",null,null,32.0,128.0,null,null,null,4.0,4.0,2.0,null,null,null,null,null,null,null,null,null,null,null,{"$f":"SUM(L93:U93)","v":10},{"$f":"ROUND(AA93*H93,2)","v":320},{"$f":"ROUND(AA93*I93,2)","v":1280}]
[null,"Merino Wool","001","Black","",null,null,32.0,128.0,null,null,2.0,6.0,6.0,4.0,2.0,null,null,null,null,null,null,null,null,null,null,20,640,2560]
[null,null,"046","Heathered Core Ultra Light Grey",null,null,null,32.0,128.0,null,null,2.0,6.0,6.0,4.0,2.0,null,null,null,null,null,null,null,null,null,null,20,640,2560]
[null,null,"047","Heathered Grey Sage",null,null,null,32.0,128.0,null,null,2.0,6.0,6.0,4.0,2.0,null,null,null,null,null,null,null,null,null,null,20,640,2560]
[]
[]
[null,null,null,null,null,null,null,null,null,null,null,"4/XS","6/S","8/M","10/L","12/XL",null,null,null,null,null,null,null,null,null,null,"Total","Wholesale","Retail"]
["54424734","lululemon: Step Aside Zip Hoodie","046","Heathered Core Ultra Light Grey",null,null,null,37.0,148.0,null,null,2.0,6.0,6.0,4.0,2.0,null,null,null,null,null,null,null,null,null,null,{"$f":"SUM(L100:U100)","v":20},{"$f":"ROUND(AA100*H100,2)","v":740},{"$f":"ROUND(AA100*I100,2)","v":2960}]
[null,"Organic Cotton, Elastance"]
[]
[]
[]
[]
[null,null,null,null,null,null,null,null,null,null,null,"4/XS","6/S","8/M","10/L","12/XL",null,null,null,null,null,null,null,null,null,null,"Total","Wholesale","Retail"]
["53898615","lululemon: Scuba Hoodie Light Cotton Fleece","091","Incognito Camo Multi Grey","",null,null,29.5,118.0,null,null,2.0,6.0,6.0,8.0,2.0,null,null,null,null,null,null,null,null,null,null,{"$f":"SUM(L107:U107)","v":24},{"$f":"ROUND(AA107*H107,2)","v":708},{"$f":"ROUND(AA107*I107,2)","v":2832}]
[null,"Cotton, Polyester, Nylon, Elastane","000","Dark Red",null,null,null,29.5,118.0,null,null,null,2.0,2.0,1.0,1.0,null,null,null,null,null,null,null,null,null,null,6,177,708]
[null,null,"031","Dark Olive",null,null,null,29.5,118.0,null,null,2.0,4.0,4.0,2.0,2.0,null,null,null,null,null,null,null,null,null,null,14,413,1652]
[null,null,"046","Heathered Core Ultra Light Grey",null,null,null,29.5,118.0,null,null,2.0,6.0,6.0,4.0,2.0,null,null,null,null,null,null,null,null,null,null,20,590,2360]
[null,null,"00","White",null,null,null,29.5,118.0,null,null,2.0,6.0,6.0,4.0,2.0,null,null,null,null,null,null,null,null,null,null,20,590,2360]
[null,null,null,null,null,null,null,null,null,null,null,null,null,null,null,null,null,null,null,null,null,null,null,null,null,null,{"$f":"SUM(L112:P112)","v":0},0,0]
[null,null,null,null,null,null,null,null,null,null,null,"4/XS","6/S","8/M","10/L","12/XL",null,null,null,null,null,null,null,null,null,null,"Total","Wholesale","Retail"]
["53700670","lululemon: All Yours Crew Graphic","005","Violet Verbana","",null,null,27.0,108.0,null,null,2.0,4.0,8.0,4.0,2.0,null,null,null,null,null,null,null,null,null,null,{"$f":"SUM(L114:P114)","v":20},{"$f":"ROUND(AA114*H114,2)","v":540},{"$f":"ROUND(AA114*I114,2)","v":2160}]
[null,"Cotton, Polyester, Elastane","00","White","",null,null,27.0,108.0,null,null,2.0,4.0,8.0,4.0,2.0,null,null,null,null,null,null,null,null,null,null,20,540,2160]
[null,null,"021","Earth Brown","",null,null,27.0,108.0,null,null,2.0,4.0,8.0,4.0,2.0,null,null,null,null,null,null,null,null,null,null,20,540,2160]
[]
[]
[]
[null,null,null,null,null,null,null,null,null,null,null,"4/XS","6/S","8/M","10/L","12/XL",null,null,null,null,null,null,null,null,null,null,"Total","Wholesale","Retail"]
[" 52097011","lululemon: Every Journey Hoodie II","029","Antique White","",null,null,34.5,138.0,null,null,4.0,10.0,10.0,6.0,2.0,null,null,null,null,null,null,null,null,null,null,{"$f":"SUM(L121:P121)","v":32},{"$f":"ROUND(AA121*H121,2)","v":1104},{"$f":"ROUND(AA121*I121,2)","v":4416}]
[null,"Nulu","001","Black ",null,null,null,34.5,138.0,null,null,4.0,10.0,12.0,6.0,2.0,null,null,null,null,null,null,null,null,null,null,34,1173,4692]
[null,null,"006","Iced Iris",null,null,null,34.5,138.0,null,null,2.0,4.0,4.0,4.0,2.0,null,null,null,null,null,null,null,null,null,null,16,552,2208]
[null,null,"043","Rustic Coral",null,null,null,34.5,138.0,null,null,null,2.0,2.0,2.0,null,null,null,null,null,null,null,null,null,null,null,6,207,828]
[null,null,null,null,null,null,null,null,null,null,null,null,null,null,null,null,null,null,null,null,null,null,null,null,null,null,0,0,0]
[null,null,null,null,null,null,null,null,null,null,null,null,null,null,null,null,null,null,null,null,null,null,null,null,null,null,0,0,0]
[null,null,null,null,null,null,null,null,null,null,null,"4/XS","6/S","8/M","10/L","12/XL",null,null,null,null,null,null,null,null,null,null,"Total","Wholesale","Retail"]
["54106844","lululemon","016","Aurora Glow Jacquard Black True Navy","",null,null,42.0,168.0,null,null,4.0,6.0,8.0,6.0,2.0,null,null,null,null,null,null,null,null,null,null,{"$f":"SUM(L128:P128)","v":26},{"$f":"ROUND(AA128*H128,2)","v":1092},{"$f":"ROUND(AA128*I128,2)","v":4368}]
[null,"luxtreme","017","Aurora Glow Jacquard Black Obsidian",null,null,null,42.0,168.0,null,null,4.0,6.0,8.0,6.0,2.0,null,null,null,null,null,null,null,null,null,null,26,1092,4368]
[]
[]
[]
[]
[null,null,null,null,null,null,null,null,null,null,null,"4/XS","6/S","8/M","10/L","12/XL",null,null,null,null,null,null,null,null,null,null,"Total","Wholesale","Retail"]
["53919049","lululemon: Perfectly Oversized Crew","007","Brier Rose","",null,null,27.0,108.0,null,null,2.0,4.0,4.0,2.0,null,null,null,null,null,null,null,null,null,null,null,{"$f":"SUM(L135:P135)","v":12},{"$f":"ROUND(AA135*H135,2)","v":324},{"$f":"ROUND(AA135*I135,2)","v":1296}]
[null,"Cotton, Elastane","011","Iron Blue",null,null,null,27.0,108.0,null,null,2.0,4.0,4.0,2.0,2.0,null,null,null,null,null,null,null,null,null,null,14,378,1512]
[null,null,"048","Heathered Core Medium Grey",null,null,null,27.0,108.0,null,null,2.0,6.0,8.0,6.0,2.0,null,null,null,null,null,null,null,null,null,null,24,648,2592]
[null,null,"009","Grey Sage",null,null,null,27.0,108.0,null,null,2.0,6.0,8.0,6.0,2.0,null,null,null,null,null,null,null,null,null,null,24,648,2592]
[null,null,"001","Black",null,null,null,27.0,108.0,null,null,1.0,6.0,6.0,4.0,1.0,null,null,null,null,null,null,null,null,null,null,18,486,1944]
[null,null,"013","True Navy"]
[null,null,null,null,null,null,null,null,null,null,null,"4/XS","6/S","8/M","10/L","12/XL",null,null,null,null,null,null,null,null,null,null,"Total","Wholesale","Retail"]
["53744165","lululemon: Dynamic Movement Zip Hoodie","028","Silk Rose","",null,null,47.0,188.0,null,null,4.0,6.0,6.0,4.0,2.0,null,null,null,null,null,null,null,null,null,null,{"$f":"SUM(L142:P142)","v":22},{"$f":"ROUND(AA142*H142,2)","v":1034},{"$f":"ROUND(AA142*I142,2)","v":4136}]
[null,"Cotton,  Polyester,  Lycra® elastane","001","Black",null,null,null,47.0,188.0,null,null,4.0,8.0,8.0,4.0,4.0,null,null,null,null,null,null,null,null,null,null,28,1316,5264]
[null,null,"014","Light Ivory",null,null,null,47.0,188.0,null,null,2.0,5.0,5.0,2.0,2.0,null,null,null,null,null,null,null,null,null,null,16,752,3008]
[]
[]
[]
[null,null,null,null,null,null,null,null,null,null,null,"4/XS","6/S","8/M","10/L","12/XL",null,null,null,null,null,null,null,null,null,null,"Total","Wholesale","Retail"]
["52352358","lululemon: LA Pullover Crew","071","Watercolor Wash Lunar Rock/Black/Larkspur","",null,null,29.5,118.0,null,null,2.0,10.0,10.0,6.0,2.0,null,null,null,null,null,null,null,null,null,null,{"$f":"SUM(L149:U149)","v":30},{"$f":"ROUND(AA149*H149,2)","v":885},{"$f":"ROUND(AA149*I149,2)","v":3540}]
[null,"Cotton Blend","072","Watercolor Wash White/Stargaze/Daydream/Key Lime",null,null,null,29.5,118.0,null,null,2.0,10.0,10.0,6.0,null,null,null,null,null,null,null,null,null,null,null,28,826,3304]
[null,null,"073","Watercolor Wash White/Stargaze",null,null,null,29.5,118.0,null,null,2.0,8.0,8.0,8.0,null,null,null,null,null,null,null,null,null,null,null,26,767,3068]
[null,null,null,null,null,null,null,null,null,null,null,null,null,null,null,null,null,null,null,null,null,null,null,null,null,null,{"$f":"SUM(L152:P152)","v":0},0,0]
[null,null,null,null,null,null,null,null,null,null,null,null,null,null,null,null,null,null,null,null,null,null,null,null,null,null,0,0,0]
[null,null,null,null,null,null,null,null,null,null,null,null,null,null,null,null,null,null,null,null,null,null,null,null,null,null,0,0,0]
[null,null,null,null,null,null,null,null,null,null,null,null,null,null,null,null,null,null,null,null,null,null,null,null,null,null,0,0,0]
[]
[null,null,null,null,null,null,null,null,null,null,null,"4/XS","6/S","8/M","10/L","12/XL",null,null,null,null,null,null,null,null,null,null,"Total","Wholesale","Retail"]
["52352359","lululemon:Retreat Yourself Hoodie","046","Heathered Core Ultra Light Grey","",null,null,37.0,148.0,null,null,2.0,2.0,6.0,6.0,2.0,null,null,null,null,null,null,null,null,null,null,{"$f":"SUM(L158:U158)","v":18},{"$f":"ROUND(AA158*H158,2)","v":666},{"$f":"ROUND(AA158*I158,2)","v":2664}]
[null,"Cotton,  Polyester,  Lycra® elastane","039","Heathered Graphite Grey",null,null,null,37.0,148.0,null,null,2.0,2.0,6.0,6.0,2.0,null,null,null,null,null,null,null,null,null,null,18,666,2664]
[null,null,null,null,null,null,null,null,null,null,null,null,null,null,null,null,null,null,null,null,null,null,null,null,null,null,{"$f":"SUM(L160:P160)","v":0},0,0]
[null,null,null,null,null,null,null,null,null,null,null,null,null,null,null,null,null,null,null,null,null,null,null,null,null,null,0,0,0]
[null,null,null,null,null,null,null,null,null,null,null,null,null,null,null,null,null,null,null,null,null,null,null,null,null,null,0,0,0]
[null,null,null,null,null,null,null,null,null,null,null,null,null,null,null,null,null,null,null,null,null,null,null,null,null,null,0,0,0]
[]
[null,null,null,null,null,null,null,null,null,null,null,"4/XS","6/S","8/M","10/L","12/XL",null,null,null,null,null,null,null,null,null,null,"Total","Wholesale","Retail"]
["52352350","lululemon: All Yours Hoodie Colourblock","101","Starlight/Asphalt Grey/Graphite Grey","",null,null,29.5,118.0,null,null,2.0,4.0,4.0,2.0,null,null,null,null,null,null,null,null,null,null,null,{"$f":"SUM(L166:U166)","v":12},{"$f":"ROUND(AA166*H166,2)","v":354},{"$f":"ROUND(AA166*I166,2)","v":1416}]
[null,"Cotton, Elastane",null,null,null,null,null,null,null,null,null,null,null,null,null,null,null,null,null,null,null,null,null,null,null,null,{"$f":"SUM(L167:P167)","v":0},0,0]
[null,null,null,null,null,null,null,null,null,null,null,null,null,null,null,null,null,null,null,null,null,null,null,null,null,null,0,0,0]
[null,null,null,null,null,null,null,null,null,null,null,null,null,null,null,null,null,null,null,null,null,null,null,null,null,null,0,0,0]
[null,null,null,null,null,null,null,null,null,null,null,null,null,null,null,null,null,null,null,null,null,null,null,null,null,null,0,0,0]
[null,null,null,null,null,null,null,null,null,null,null,null,null,null,null,null,null,null,null,null,null,null,null,null,null,null,0,0,0]
[]
[null,null,null,null,null,null,null,null,null,null,null,"4/XS","6/S","8/M","10/L","12/XL",null,null,null,null,null,null,null,null,null,null,"Total","Wholesale","Retail"]
["52342458","lululemon: City Sweat Crew Spacer","006","Iced Iris","",null,null,22.25,89.0,null,null,2.0,4.0,6.0,2.0,2.0,null,null,null,null,null,null,null,null,null,null,{"$f":"SUM(L174:P174)","v":16},{"$f":"ROUND(AA174*H174,2)","v":356},{"$f":"ROUND(AA174*I174,2)","v":1424}]
[null,"Nylon,  Polyester,  Lycra® elastane","101","Tiger ",null,null,null,22.25,89.0,null,null,null,null,2.0,2.0,null,null,null,null,null,null,null,null,null,null,null,4,89,356]
[null,null,"001","Black",null,null,null,22.25,89.0,null,null,2.0,4.0,8.0,6.0,4.0,null,null,null,null,null,null,null,null,null,null,24,534,2136]
[null,null,null,null,null,null,null,null,null,null,null,null,null,null,null,null,null,null,null,null,null,null,null,null,null,null,0,0,0]
[null,null,null,null,null,null,null,null,null,null,null,null,null,null,null,null,null,null,null,null,null,null,null,null,null,null,0,0,0]
[null,null,null,null,null,null,null,null,null,null,null,null,null,null,null,null,null,null,null,null,null,null,null,null,null,null,0,0,0]
[]
[]
[null,null,null,null,null,null,null,null,null,null,null,null,null,null,null,null,null,null,null,null,null,null,null,null,null,null,null,null,null,"Subtotal for Hoodies + Sweatshirts:",{"$f":"SUM(AA92:AA181)","v":708},23027,{"$f":"ROUND(SUM(AC92:AC181),2)","v":92108}]
[]
[]
[null,null,null,"Leggings"]
[]
[null,null,null,null,null,null,null,null,null,null,null,"4/XS","6/S","8/M","10/L","12/XL",null,null,null,null,null,null,null,null,null,null,"Total","Wholesale","Retail"]
["52377358","lululemon: Fast and Free Tight 25\" Ice Dye","901","Ice Wash Cerulean Blue","",null,null,37.0,148.0,null,null,6.0,12.0,12.0,10.0,2.0,null,null,null,null,null,null,null,null,null,null,{"$f":"SUM(L188:U188)","v":42},{"$f":"ROUND(AA188*H188,2)","v":1554},{"$f":"ROUND(AA188*I188,2)","v":6216}]
[null,"Nylon,  Lycra® elastane","902","Ice Wash Moss Green",null,null,null,37.0,148.0,null,null,6.0,12.0,12.0,10.0,2.0,null,null,null,null,null,null,null,null,null,null,42,1554,6216]
[null,null,"903","Ice Wash Hazel Green",null,null,null,37.0,148.0,null,null,6.0,12.0,12.0,10.0,2.0,null,null,null,null,null,null,null,null,null,null,42,1554,6216]
[null,null,"904","Ice Wash Asphalt Grey",null,null,null,37.0,148.0,null,null,6.0,12.0,12.0,10.0,2.0,null,null,null,null,null,null,null,null,null,null,42,1554,6216]
[null,null,null,null,null,null,null,null,null,null,null,null,null,null,null,null,null,null,null,null,null,null,null,null,null,null,{"$f":"SUM(L192:P192)","v":0},0,0]
[null,null,null,null,null,null,null,null,null,null,null,null,null,null,null,null,null,null,null,null,null,null,null,null,null,null,0,0,0]
[]
[null,null,null,null,null,null,null,null,null,null,null,"4/XS","6/S","8/M","10/L","12/XL",null,null,null,null,null,null,null,null,null,null,"Total","Wholesale","Retail"]
["55652358","lululemon: Fast and Free Tight II 25\" Non-Reflective Nulux","040","Activate Floral Multi","",null,null,34.5,138.0,null,null,null,12.0,12.0,8.0,2.0,null,null,null,null,null,null,null,null,null,null,{"$f":"SUM(L196:P196)","v":34},{"$f":"ROUND(AA196*H196,2)","v":1173},{"$f":"ROUND(AA196*I196,2)","v":4692}]
[null,"Nylon,  Lycra® elastane","091","Incognito Camo Multi Grey",null,null,null,34.5,138.0,null,null,null,12.0,12.0,8.0,2.0,null,null,null,null,null,null,null,null,null,null,34,1173,4692]
[null,null,"013","True Navy",null,null,null,34.5,138.0,null,null,2.0,10.0,10.0,6.0,2.0,null,null,null,null,null,null,null,null,null,null,30,1035,4140]
[null,null,"020","Cassis",null,null,null,34.5,138.0,null,null,2.0,10.0,10.0,6.0,null,null,null,null,null,null,null,null,null,null,null,28,966,3864]
[null,null,"000","Dark Red",null,null,null,34.5,138.0,null,null,null,4.0,4.0,4.0,null,null,null,null,null,null,null,null,null,null,null,12,414,1656]
[null,null,null,null,null,null,null,null,null,null,null,null,null,null,null,null,null,null,null,null,null,null,null,null,null,null,0,0,0]
[]
[null,null,null,null,null,null,null,null,null,null,null,"4/XS","6/S","8/M","10/L","12/XL",null,null,null,null,null,null,null,null,null,null,"Total","Wholesale","Retail"]
["52351158","lululemon: Align Pant II 25\" Diamond Dye","440","Diamond Dye Graphite Grey Pink Pastel","",null,null,29.5,118.0,null,null,4.0,12.0,12.0,10.0,2.0,null,null,null,null,null,null,null,null,null,null,{"$f":"SUM(L204:U204)","v":40},{"$f":"ROUND(AA204*H204,2)","v":1180},{"$f":"ROUND(AA204*I204,2)","v":4720}]
[null,"Cotton","441","Diamond Dye Iced Iris Peri Purple",null,null,null,29.5,118.0,null,null,4.0,12.0,12.0,10.0,2.0,null,null,null,null,null,null,null,null,null,null,40,1180,4720]
[null,null,null,null,null,null,null,null,null,null,null,null,null,null,null,null,null,null,null,null,null,null,null,null,null,null,{"$f":"SUM(L206:P206)","v":0},0,0]
[null,null,null,null,null,null,null,null,null,null,null,null,null,null,null,null,null,null,null,null,null,null,null,null,null,null,0,0,0]
[null,null,null,null,null,null,null,null,null,null,null,null,null,null,null,null,null,null,null,null,null,null,null,null,null,null,0,0,0]
[null,null,null,null,null,null,null,null,null,null,null,null,null,null,null,null,null,null,null,null,null,null,null,null,null,null,0,0,0]
[]
[null,null,null,null,null,null,null,null,null,null,null,"4/XS","6/S","8/M","10/L","12/XL",null,null,null,null,null,null,null,null,null,null,"Total","Wholesale","Retail"]
["52300358","lululemon: Wunder Train High-Rise Tight 25\"","007","Brier Rose ","",null,null,24.5,98.0,null,null,4.0,10.0,10.0,8.0,2.0,null,null,null,null,null,null,null,null,null,null,{"$f":"SUM(L212:P212)","v":34},{"$f":"ROUND(AA212*H212,2)","v":833},{"$f":"ROUND(AA212*I212,2)","v":3332}]
[null,"Luxtreme","069","Heathered Cassis",null,null,null,24.5,98.0,null,null,4.0,10.0,10.0,8.0,2.0,null,null,null,null,null,null,null,null,null,null,34,833,3332]
[null,null,"031","Dark Olive",null,null,null,24.5,98.0,null,null,8.0,12.0,12.0,10.0,2.0,null,null,null,null,null,null,null,null,null,null,44,1078,4312]
[null,null,"013","True Navy",null,null,null,24.5,98.0,null,null,4.0,10.0,10.0,8.0,2.0,null,null,null,null,null,null,null,null,null,null,34,833,3332]
[null,null,"009","Grey Sage",null,null,null,24.5,98.0,null,null,8.0,12.0,12.0,10.0,2.0,null,null,null,null,null,null,null,null,null,null,44,1078,4312]
[null,null,null,null,null,null,null,null,null,null,null,null,null,null,null,null,null,null,null,null,null,null,null,null,null,null,0,0,0]
[]
[]
[null,null,null,null,null,null,null,null,null,null,null,"4/XS","6/S","8/M","10/L","12/XL",null,null,null,null,null,null,null,null,null,null,"Total","Wholesale","Retail"]
["52779907","lululemon: Unlimit High-Rise Tight 25\"","001","Black","",null,null,24.5,98.0,null,null,6.0,12.0,12.0,12.0,4.0,null,null,null,null,null,null,null,null,null,null,{"$f":"SUM(L221:P221)","v":46},{"$f":"ROUND(AA221*H221,2)","v":1127},{"$f":"ROUND(AA221*I221,2)","v":4508}]
[null,"Nylon,  Lycra® elastane","007","Brier Rose",null,null,null,24.5,98.0,null,null,6.0,12.0,12.0,12.0,4.0,null,null,null,null,null,null,null,null,null,null,46,1127,4508]
[null,null,null,null,"",null,null,null,null,null,null,{"$f":"L223:AC223","v":"#REF!"}]
[null,null,null,null,"",null,null,null,null,null,null,null,null,null,null,null,null,null,null,null,null,null,null,null,null,null,{"$f":"SUM(L224:P224)","v":0},{"$f":"ROUND(AA224*H224,2)","v":0},{"$f":"ROUND(AA224*I224,2)","v":0}]
[]
[]
[]
[]
[null,null,null,null,null,null,null,null,null,null,null,"4/XS","6/S","8/M","10/L","12/XL",null,null,null,null,null,null,null,null,null,null,"Total","Wholesale","Retail"]
["53355178","lululemon: Align Pant 28\"","009","Grey Sage","",null,null,24.5,98.0,null,null,6.0,12.0,12.0,10.0,4.0,null,null,null,null,null,null,null,null,null,null,{"$f":"SUM(L230:P230)","v":44},{"$f":"ROUND(AA230*H230,2)","v":1078},{"$f":"ROUND(AA230*I230,2)","v":4312}]
[null,"Nylon,  Lycra® elastane","222","Formulate Emboss Medium Olive",null,null,null,24.5,98.0,null,null,6.0,12.0,12.0,10.0,4.0,null,null,null,null,null,null,null,null,null,null,44,1078,4312]
[null,null,"224","Formulate Emboss Black",null,null,null,24.5,98.0,null,null,6.0,12.0,12.0,10.0,4.0,null,null,null,null,null,null,null,null,null,null,44,1078,4312]
[null,null,"055","Chambray",null,null,null,24.5,98.0,null,null,null,8.0,8.0,6.0,2.0,null,null,null,null,null,null,null,null,null,null,24,588,2352]
[]
[]
[]
[]
[null,null,null,null,null,null,null,null,null,null,null,"4/XS","6/S","8/M","10/L","12/XL",null,null,null,null,null,null,null,null,null,null,"Total","Wholesale","Retail"]
["51159663","lululemon: Align Super High-Rise Pant 28\"","031","Dark Olive","",null,null,24.5,98.0,null,null,4.0,12.0,12.0,10.0,2.0,null,null,null,null,null,null,null,null,null,null,{"$f":"SUM(L239:P239)","v":40},{"$f":"ROUND(AA239*H239,2)","v":980},{"$f":"ROUND(AA239*I239,2)","v":3920}]
[null,"Nylon,  Lycra® elastane","001","Black",null,null,null,24.5,98.0,null,null,4.0,12.0,12.0,10.0,2.0,null,null,null,null,null,null,null,null,null,null,40,980,3920]
[null,null,"091","Incognito Camo Multi Grey",null,null,null,24.5,98.0,null,null,4.0,12.0,12.0,10.0,2.0,null,null,null,null,null,null,null,null,null,null,40,980,3920]
[]
[]
[]
[]
[]
[null,null,null,null,null,null,null,null,null,null,null,"4/XS","6/S","8/M","10/L","12/XL",null,null,null,null,null,null,null,null,null,null,"Total","Wholesale","Retail"]
["50851203","lululemon: Align High Rise Crop 17\" ","444","Graphite Grey ","",null,null,22.0,88.0,null,null,8.0,12.0,12.0,8.0,4.0,null,null,null,null,null,null,null,null,null,null,{"$f":"SUM(L248:P248)","v":44},{"$f":"ROUND(AA248*H248,2)","v":968},{"$f":"ROUND(AA248*I248,2)","v":3872}]
[null,"Nylon,  Lycra® elastane","031","Dark Olive","",null,null,22.0,88.0,null,null,8.0,12.0,12.0,8.0,4.0,null,null,null,null,null,null,null,null,null,null,44,968,3872]
[null,null,"055","Chambray","",null,null,22.0,88.0,null,null,4.0,8.0,8.0,6.0,2.0,null,null,null,null,null,null,null,null,null,null,28,616,2464]
[null,null,"070","Cassis","",null,null,22.0,88.0,null,null,4.0,8.0,8.0,6.0,2.0,null,null,null,null,null,null,null,null,null,null,28,616,2464]
[null,null,"013","True Navy","",null,null,22.0,88.0,null,null,4.0,8.0,8.0,6.0,2.0,null,null,null,null,null,null,null,null,null,null,28,616,2464]
[]
[]
[]
[null,null,null,null,null,null,null,null,null,null,null,"4/XS","6/S","8/M","10/L","12/XL",null,null,null,null,null,null,null,null,null,null,"Total","Wholesale","Retail"]
["52916020","lululemon: Run Off Route Mid Rise Crop 21\"","999","Velocity Mesh Island Mist Black/Black","",null,null,22.0,88.0,null,null,4.0,12.0,12.0,12.0,4.0,null,null,null,null,null,null,null,null,null,null,{"$f":"SUM(L257:P257)","v":44},{"$f":"ROUND(AA257*H257,2)","v":968},{"$f":"ROUND(AA257*I257,2)","v":3872}]
[null,"Nylon,  Lycra® elastane","001","Black","",null,null,22.0,88.0,null,null,4.0,12.0,12.0,12.0,4.0,null,null,null,null,null,null,null,null,null,null,44,968,3872]
[]
[]
[null,null,null,null,null,null,null,null,null,null,null,null,null,null,null,null,null,null,null,null,null,null,null,null,null,null,{"$f":"SUM(L261:P261)","v":0},{"$f":"ROUND(AA261*H261,2)","v":0},{"$f":"ROUND(AA261*I261,2)","v":0}]
[null,null,null,null,null,null,null,null,null,null,null,null,null,null,null,null,null,null,null,null,null,null,null,null,null,null,0,0,0]
[]
[null,null,null,null,null,null,null,null,null,null,null,null,null,null,null,null,null,null,null,null,null,null,null,null,null,null,null,null,null,"Subtotal for Leggings:",{"$f":"ROUND(SUM(AA185:AA263),2)","v":1204},32728,130912]
[]
[]
[null,null,null,"Joggers"]
[]
[null,null,null,null,null,null,null,null,null,null,null,"4/XS","6/S","8/M","10/L","12/XL",null,null,null,null,null,null,null,null,null,null,"Total","Wholesale","Retail"]
["528987358","lululemon: Ready to Rulu Jogger 29\"","020","Cassis","",null,null,29.5,118.0,null,null,2.0,6.0,6.0,4.0,2.0,null,null,null,null,null,null,null,null,null,null,{"$f":"SUM(L270:U270)","v":20},{"$f":"ROUND(AA270*H270,2)","v":590},{"$f":"ROUND(AA270*I270,2)","v":2360}]
[null,"Nylon,  Lycra® elastane","001","Black",null,null,null,29.5,118.0,null,null,4.0,8.0,10.0,6.0,2.0,null,null,null,null,null,null,null,null,null,null,30,885,3540]
[null,null,"646","Lunar Rock",null,null,null,29.5,118.0,null,null,2.0,4.0,6.0,2.0,null,null,null,null,null,null,null,null,null,null,null,14,413,1652]
[null,null,"770","Heathered Dark Cast",null,null,null,29.5,118.0,null,null,null,2.0,2.0,2.0,null,null,null,null,null,null,null,null,null,null,null,6,177,708]
[null,null,null,null,null,null,null,null,null,null,null,null,null,null,null,null,null,null,null,null,null,null,null,null,null,null,{"$f":"SUM(L274:P274)","v":0},0,0]
[null,null,null,null,null,null,null,null,null,null,null,null,null,null,null,null,null,null,null,null,null,null,null,null,null,null,0,0,0]
[]
[]
[null,null,null,null,null,null,null,null,null,null,null,"4/XS","6/S","8/M","10/L","12/XL",null,null,null,null,null,null,null,null,null,null,"Total","Wholesale","Retail"]
["55610976","lululemon: Essential Affinity Mid Rise Jogger 27\"","888","Saddle Brown","",null,null,34.5,138.0,null,null,4.0,10.0,10.0,8.0,2.0,null,null,null,null,null,null,null,null,null,null,{"$f":"SUM(L279:P279)","v":34},{"$f":"ROUND(AA279*H279,2)","v":1173},{"$f":"ROUND(AA279*I279,2)","v":4692}]
[null,"Cupro,  Lenzing® modal, Elastane","001","Black","",null,null,34.5,138.0,null,null,4.0,10.0,10.0,8.0,2.0,null,null,null,null,null,null,null,null,null,null,34,1173,4692]
[null,null,"031","Dark Olive",null,null,null,34.5,138.0,null,null,4.0,8.0,8.0,6.0,2.0,null,null,null,null,null,null,null,null,null,null,28,966,3864]
[null,null,null,null,null,null,null,null,null,null,null,null,null,null,null,null,null,null,null,null,null,null,null,null,null,null,0,0,0]
[null,null,null,null,null,null,null,null,null,null,null,null,null,null,null,null,null,null,null,null,null,null,null,null,null,null,0,0,0]
[null,null,null,null,null,null,null,null,null,null,null,null,null,null,null,null,null,null,null,null,null,null,null,null,null,null,0,0,0]
[]
[]
[]
[null,null,null,null,null,null,null,null,null,null,null,"4/XS","6/S","8/M","10/L","12/XL",null,null,null,null,null,null,null,null,null,null,"Total","Wholesale","Retail"]
["55043376","lululemon: Dance Studio Jogger 29\"","013","True Navy","",null,null,24.5,98.0,null,null,4.0,10.0,10.0,4.0,2.0,null,null,null,null,null,null,null,null,null,null,{"$f":"SUM(L289:P289)","v":30},{"$f":"ROUND(AA289*H289,2)","v":735},{"$f":"ROUND(AA289*I289,2)","v":2940}]
[null,"Nylon, Elastane","031","Dark Olive","",null,null,24.5,98.0,null,null,4.0,10.0,10.0,6.0,2.0,null,null,null,null,null,null,null,null,null,null,32,784,3136]
[null,null,"001","Black",null,null,null,24.5,98.0,null,null,4.0,10.0,10.0,6.0,4.0,null,null,null,null,null,null,null,null,null,null,34,833,3332]
[null,null,null,null,null,null,null,null,null,null,null,null,null,null,null,null,null,null,null,null,null,null,null,null,null,null,0,0,0]
[null,null,null,null,null,null,null,null,null,null,null,null,null,null,null,null,null,null,null,null,null,null,null,null,null,null,0,0,0]
[null,null,null,null,null,null,null,null,null,null,null,null,null,null,null,null,null,null,null,null,null,null,null,null,null,null,0,0,0]
[]
[null,null,null,null,null,null,null,null,null,null,null,"4/XS","6/S","8/M","10/L","12/XL",null,null,null,null,null,null,null,null,null,null,"Total","Wholesale","Retail"]
["53801973","lululemon: Beyond the Studio Jogger","646","Lunar Rock",null,null,null,32.0,128.0,null,null,6.0,10.0,10.0,6.0,4.0,null,null,null,null,null,null,null,null,null,null,{"$f":"SUM(L297:U297)","v":36},{"$f":"ROUND(AA297*H297,2)","v":1152},{"$f":"ROUND(AA297*I297,2)","v":4608}]
[null,"Nylon, Elastane","001","Black",null,null,null,32.0,128.0,null,null,6.0,10.0,10.0,6.0,4.0,null,null,null,null,null,null,null,null,null,null,36,1152,4608]
[]
[]
[]
[null,null,null,null,null,null,null,null,null,null,null,null,null,null,null,null,null,null,null,null,null,null,null,null,null,null,{"$f":"SUM(L302:P302)","v":0},{"$f":"ROUND(AA302*H302,2)","v":0},{"$f":"ROUND(AA302*I302,2)","v":0}]
[]
[]
[null,null,null,null,null,null,null,null,null,null,null,"4/XS","6/S","8/M","10/L","12/XL",null,null,null,null,null,null,null,null,null,null,"Total","Wholesale","Retail"]
["50001973","lululemon: Align Jogger Cool Vent","005","Violet Verbena",null,null,null,29.5,118.0,null,null,4.0,10.0,10.0,6.0,4.0,null,null,null,null,null,null,null,null,null,null,{"$f":"SUM(L306:U306)","v":34},{"$f":"ROUND(AA306*H306,2)","v":1003},{"$f":"ROUND(AA306*I306,2)","v":4012}]
[null,"Nylon, Lycra® elastane","001","Black",null,null,null,29.5,118.0,null,null,4.0,10.0,10.0,6.0,4.0,null,null,null,null,null,null,null,null,null,null,34,1003,4012]
[]
[]
[]
[null,null,null,null,null,null,null,null,null,null,null,null,null,null,null,null,null,null,null,null,null,null,null,null,null,null,{"$f":"SUM(L311:P311)","v":0},{"$f":"ROUND(AA311*H311,2)","v":0},{"$f":"ROUND(AA311*I311,2)","v":0}]
[]
[]
[null,null,null,null,null,null,null,null,null,null,null,"4/XS","6/S","8/M","10/L","12/XL",null,null,null,null,null,null,null,null,null,null,"Total","Wholesale","Retail"]
["59000973","lululemon: Sun Setter Jogger 28\"","001","Black",null,null,null,27.0,108.0,null,null,6.0,12.0,12.0,8.0,4.0,null,null,null,null,null,null,null,null,null,null,{"$f":"SUM(L315:P315)","v":42},{"$f":"ROUND(AA315*H315,2)","v":1134},{"$f":"ROUND(AA315*I315,2)","v":4536}]
[null,"Polyester, Elastane","555","Light Military",null,null,null,27.0,108.0,null,null,6.0,12.0,12.0,8.0,4.0,null,null,null,null,null,null,null,null,null,null,42,1134,4536]
[]
[]
[]
[null,null,null,null,null,null,null,null,null,null,null,null,null,null,null,null,null,null,null,null,null,null,null,null,null,null,{"$f":"SUM(L320:P320)","v":0},{"$f":"ROUND(AA320*H320,2)","v":0},{"$f":"ROUND(AA320*I320,2)","v":0}]
[]
[]
[null,null,null,null,null,null,null,null,null,null,null,"4/XS","6/S","8/M","10/L","12/XL",null,null,null,null,null,null,null,null,null,null,"Total","Wholesale","Retail"]
["53833373","lululemon: Kosaten Jogger lululemon lab","707","Black Granite",null,null,null,42.0,168.0,null,null,6.0,10.0,10.0,8.0,2.0,null,null,null,null,null,null,null,null,null,null,{"$f":"SUM(L324:P324)","v":36},{"$f":"ROUND(AA324*H324,2)","v":1512},{"$f":"ROUND(AA324*I324,2)","v":6048}]
[null,"Re-cycled Polyester, Nylon, Elastane","555","Light Military",null,null,null,42.0,168.0,null,null,6.0,10.0,10.0,8.0,null,null,null,null,null,null,null,null,null,null,null,34,1428,5712]
[null,null,"654","Iron Grey",null,null,null,42.0,168.0,null,null,6.0,10.0,10.0,8.0,null,null,null,null,null,null,null,null,null,null,null,34,1428,5712]
[]
[]
[null,null,null,null,null,null,null,null,null,null,null,null,null,null,null,null,null,null,null,null,null,null,null,null,null,null,{"$f":"SUM(L329:P329)","v":0},{"$f":"ROUND(AA329*H329,2)","v":0},{"$f":"ROUND(AA329*I329,2)","v":0}]
[]
[]
[]
[null,null,null,null,null,null,null,null,null,null,null,"4/XS","6/S","8/M","10/L","12/XL",null,null,null,null,null,null,null,null,null,null,"Total","Wholesale","Retail"]
["56666673","lululemon: Soft Ambitions High Rise Jogger","046","Heathered Core Ultra Light Grey",null,null,null,34.5,138.0,null,null,6.0,12.0,12.0,10.0,null,null,null,null,null,null,null,null,null,null,null,{"$f":"SUM(L334:P334)","v":40},{"$f":"ROUND(AA334*H334,2)","v":1380},{"$f":"ROUND(AA334*I334,2)","v":5520}]
[null,"Recycled polyester,  Lenzing® modal, Elastane"]
[]
[]
[]
[null,null,null,null,null,null,null,null,null,null,null,null,null,null,null,null,null,null,null,null,null,null,null,null,null,null,{"$f":"SUM(L339:P339)","v":0},{"$f":"ROUND(AA339*H339,2)","v":0},{"$f":"ROUND(AA339*I339,2)","v":0}]
[]
[]
[]
[null,null,null,null,null,null,null,null,null,null,null,"4/XS","6/S","8/M","10/L","12/XL",null,null,null,null,null,null,null,null,null,null,"Total","Wholesale","Retail"]
["56570973","lululemon: Face Forward Jogger lululemon x Roksanda","303","Garnet/Rustic Coral/Fools Gold",null,null,null,27.25,109.0,null,null,2.0,6.0,6.0,2.0,null,null,null,null,null,null,null,null,null,null,null,{"$f":"SUM(L344:U344)","v":16},{"$f":"ROUND(AA344*H344,2)","v":436},{"$f":"ROUND(AA344*I344,2)","v":1744}]
[null,"Cotton"]
[]
[]
[]
[null,null,null,null,null,null,null,null,null,null,null,null,null,null,null,null,null,null,null,null,null,null,null,null,null,null,{"$f":"SUM(L349:P349)","v":0},{"$f":"ROUND(AA349*H349,2)","v":0},{"$f":"ROUND(AA349*I349,2)","v":0}]
[]
[]
[null,null,null,null,null,null,null,null,null,null,null,null,null,null,null,null,null,null,null,null,null,null,null,null,null,null,null,null,null,"Subtotal for Joggers:",{"$f":"ROUND(SUM(AA269:AA351),2)","v":646},20491,81964]
[]
[]
[]
[null,null,null,"Dresses"]
[]
[]
[null,null,null,null,null,null,null,null,null,null,null,"4/XS","6/S","8/M","10/L","12/XL",null,null,null,null,null,null,null,null,null,null,"Total","Wholesale","Retail"]
["53561973","lululemon: Sarala Jumpsuit","021","Light Military",null,null,null,47.0,188.0,null,null,null,6.0,6.0,4.0,null,null,null,null,null,null,null,null,null,null,null,{"$f":"SUM(L360:U360)","v":16},{"$f":"ROUND(AA360*H360,2)","v":752},{"$f":"ROUND(AA360*I360,2)","v":3008}]
[null,"Polyester, Elastene","310","Black Granite",null,null,null,47.0,188.0,null,null,null,6.0,6.0,4.0,null,null,null,null,null,null,null,null,null,null,null,16,752,3008]
[]
[]
[]
[null,null,null,null,null,null,null,null,null,null,null,null,null,null,null,null,null,null,null,null,null,null,null,null,null,null,{"$f":"SUM(L365:P365)","v":0},{"$f":"ROUND(AA365*H365,2)","v":0},{"$f":"ROUND(AA365*I365,2)","v":0}]
[]
[]
[null,null,null,null,null,null,null,null,null,null,null,"4/XS","6/S","8/M","10/L","12/XL",null,null,null,null,null,null,null,null,null,null,"Total","Wholesale","Retail"]
["53654307","lululemon: Ease of It All Jumpsuit","444","Graphite Grey","",null,null,34.5,138.0,null,null,null,2.0,2.0,2.0,null,null,null,null,null,null,null,null,null,null,null,{"$f":"SUM(L369:P369)","v":6},{"$f":"ROUND(AA369*H369,2)","v":207},{"$f":"ROUND(AA369*I369,2)","v":828}]
[null,"Lenzing® modal, Recycled polyester, Elastane"]
[]
[]
[]
[]
[]
[]
[null,null,null,null,null,null,null,null,null,null,null,"4/XS","6/S","8/M","10/L","12/XL",null,null,null,null,null,null,null,null,null,null,"Total","Wholesale","Retail"]
["53157947","lululemon:Sarala Dress","654","Iron Grey ","",null,null,42.0,168.0,null,null,null,4.0,4.0,2.0,null,null,null,null,null,null,null,null,null,null,null,{"$f":"SUM(L378:P378)","v":10},{"$f":"ROUND(AA378*H378,2)","v":420},{"$f":"ROUND(AA378*I378,2)","v":1680}]
[null,"Polyester, Elastane","202","Harbor Green","",null,null,42.0,168.0,null,null,null,4.0,4.0,2.0,null,null,null,null,null,null,null,null,null,null,null,10,420,1680]
[null,null,"310","Black Granite","",null,null,42.0,168.0,null,null,null,4.0,4.0,2.0,null,null,null,null,null,null,null,null,null,null,null,10,420,1680]
[]
[]
[]
[]
[]
[null,null,null,null,null,null,null,null,null,null,null,"4/XS","6/S","8/M","10/L","12/XL",null,null,null,null,null,null,null,null,null,null,"Total","Wholesale","Retail"]
["53180847","lululemon: Shift in Time Dress","321","Dune/Light Chrome","",null,null,37.0,148.0,null,null,null,6.0,6.0,4.0,0.0,null,null,null,null,null,null,null,null,null,null,{"$f":"SUM(L387:U387)","v":16},{"$f":"ROUND(AA387*H387,2)","v":592},{"$f":"ROUND(AA387*I387,2)","v":2368}]
[null,"Polyester","001","Black","",null,null,37.0,148.0,null,null,null,6.0,6.0,4.0,null,null,null,null,null,null,null,null,null,null,null,16,592,2368]
[null,null,null,null,""]
[]
[]
[]
[]
[null,null,null,null,null,null,null,null,null,null,null,null,null,null,null,null,null,null,null,null,null,null,null,null,null,null,null,null,null,"Subtotal for Dresses:",{"$f":"ROUND(SUM(AA358:AA393),2)","v":100},4155,16620]
[]
[]
[null,null,null,"Shirts "]
[]
[null,null,null,null,null,null,null,null,null,null,null,"4/XS","6/S","8/M","10/L","12/XL",null,null,null,null,null,null,null,null,null,null,"Total","Wholesale","Retail"]
["52018892","lululemon: All Yours Boyfriend Tee","737","Ancient Copper","",null,null,14.5,58.0,null,null,null,8.0,8.0,4.0,2.0,null,null,null,null,null,null,null,null,null,null,{"$f":"SUM(L400:U400)","v":22},{"$f":"ROUND(AA400*H400,2)","v":319},{"$f":"ROUND(AA400*I400,2)","v":1276}]
[null,"Pima cotton, Lyocell, Lycra® elastane","111","Micro Strip Black White","",null,null,14.5,58.0,null,null,null,10.0,10.0,10.0,2.0,null,null,null,null,null,null,null,null,null,null,32,464,1856]
[null,null,"199","Yellow Serpentine","",null,null,14.5,58.0,null,null,null,4.0,4.0,4.0,null,null,null,null,null,null,null,null,null,null,null,12,174,696]
[null,null,"001","Black","",null,null,14.5,58.0,null,null,null,10.0,10.0,8.0,2.0,null,null,null,null,null,null,null,null,null,null,30,435,1740]
[null,null,"197","Soliel",null,null,null,14.5,58.0,null,null,null,4.0,4.0,4.0,null,null,null,null,null,null,null,null,null,null,null,12,174,696]
[]
[null,null,null,null,null,null,null,null,null,null,null,"4/XS","6/S","8/M","10/L","12/XL",null,null,null,null,null,null,null,null,null,null,"Total","Wholesale","Retail"]
["54591177 ","lululemon: Muscle Love Long Sleeve","001","Black","",null,null,22.0,88.0,null,null,4.0,8.0,8.0,8.0,4.0,null,null,null,null,null,null,null,null,null,null,{"$f":"SUM(L407:U407)","v":32},{"$f":"ROUND(AA407*H407,2)","v":704},{"$f":"ROUND(AA407*I407,2)","v":2816}]
[null,"Nylon, Elastane","055","Chambray",null,null,null,22.0,88.0,null,null,null,8.0,8.0,4.0,2.0,null,null,null,null,null,null,null,null,null,null,22,484,1936]
[null,null,null,null,null,null,null,null,null,null,null,null,null,null,null,null,null,null,null,null,null,null,null,null,null,null,0,0,0]
[null,null,null,null,null,null,null,null,null,null,null,null,null,null,null,null,null,null,null,null,null,null,null,null,null,null,0,0,0]
[]
[]
[null,null,null,null,null,null,null,null,null,null,null,"4/XS","6/S","8/M","10/L","12/XL",null,null,null,null,null,null,null,null,null,null,"Total","Wholesale","Retail"]
["55678866","lululemon: Breeze By Long Sleeve Polar Spots","980","Polar Spots Titanium/Black",null,null,null,19.5,78.0,null,null,4.0,10.0,10.0,8.0,2.0,null,null,null,null,null,null,null,null,null,null,{"$f":"SUM(L414:U414)","v":34},{"$f":"ROUND(AA414*H414,2)","v":663},{"$f":"ROUND(AA414*I414,2)","v":2652}]
[null,"Nylon, Polyester, X-static® nylon"]
[]
[]
[]
[]
[null,null,null,null,null,null,null,null,null,null,null,"4/XS","6/S","8/M","10/L","12/XL",null,null,null,null,null,null,null,null,null,null,"Total","Wholesale","Retail"]
["53525838","lululemon: Swiftly Wool Pullover Ribbed","848","Black/White","",null,null,24.5,98.0,null,null,4.0,10.0,10.0,8.0,2.0,null,null,null,null,null,null,null,null,null,null,{"$f":"SUM(L421:P421)","v":34},{"$f":"ROUND(AA421*H421,2)","v":833},{"$f":"ROUND(AA421*I421,2)","v":3332}]
[null,"Nylon, Wool,  Polyester, X-static® nylon, Elastane","838","Moss Rose/White",null,null,null,24.5,98.0,null,null,4.0,10.0,10.0,8.0,2.0,null,null,null,null,null,null,null,null,null,null,34,833,3332]
[null,null,"828","Night Diver/White",null,null,null,24.5,98.0,null,null,4.0,10.0,10.0,8.0,2.0,null,null,null,null,null,null,null,null,null,null,34,833,3332]
[]
[]
[null,null,null,null,null,null,null,null,null,null,null,null,null,null,null,null,null,null,null,null,null,null,null,null,null,null,{"$f":"SUM(L426:U426)","v":0},{"$f":"ROUND(AA426*H426,2)","v":0},{"$f":"ROUND(AA426*I426,2)","v":0}]
[null,null,null,null,null,null,null,null,null,null,null,"4/XS","6/S","8/M","10/L","12/XL",null,null,null,null,null,null,null,null,null,null,"Total","Wholesale","Retail"]
["53852810","lululemon: Check the Box Short Sleeve","00","White","",null,null,14.5,58.0,null,null,2.0,12.0,12.0,10.0,2.0,null,null,null,null,null,null,null,null,null,null,{"$f":"SUM(L428:U428)","v":38},{"$f":"ROUND(AA428*H428,2)","v":551},{"$f":"ROUND(AA428*I428,2)","v":2204}]
[null,"Pima cotton, Lycra® elastane","039","Heathered Graphite Grey",null,null,null,14.5,58.0,null,null,2.0,12.0,12.0,8.0,2.0,null,null,null,null,null,null,null,null,null,null,36,522,2088]
[null,null,"003","Heathered Pink Pastel",null,null,null,14.5,58.0,null,null,null,8.0,8.0,4.0,null,null,null,null,null,null,null,null,null,null,null,20,290,1160]
[null,null,"055","Chambray",null,null,null,14.5,58.0,null,null,null,8.0,8.0,4.0,null,null,null,null,null,null,null,null,null,null,null,20,290,1160]
[]
[null,null,null,null,null,null,null,null,null,null,null,null,null,null,null,null,null,null,null,null,null,null,null,null,null,null,{"$f":"SUM(L433:U433)","v":0},{"$f":"ROUND(AA433*H433,2)","v":0},{"$f":"ROUND(AA433*I433,2)","v":0}]
[null,null,null,null,null,null,null,null,null,null,null,"4/XS","6/S","8/M","10/L","12/XL",null,null,null,null,null,null,null,null,null,null,"Total","Wholesale","Retail"]
["54661467","lululemon: Ebb to Street Tank","001","Black","",null,null,14.5,58.0,null,null,2.0,12.0,12.0,8.0,2.0,null,null,null,null,null,null,null,null,null,null,{"$f":"SUM(L435:U435)","v":36},{"$f":"ROUND(AA435*H435,2)","v":522},{"$f":"ROUND(AA435*I435,2)","v":2088}]
[null,"Nylon","00","White",null,null,null,14.5,58.0,null,null,2.0,12.0,12.0,8.0,2.0,null,null,null,null,null,null,null,null,null,null,36,522,2088]
[null,null,"707","Blue Cast",null,null,null,14.5,58.0,null,null,2.0,4.0,4.0,2.0,null,null,null,null,null,null,null,null,null,null,null,12,174,696]
[]
[]
[]
[null,null,null,null,null,null,null,null,null,null,null,"4/XS","6/S","8/M","10/L","12/XL",null,null,null,null,null,null,null,null,null,null,"Total","Wholesale","Retail"]
["53834263","lululemon: Cool Racerback II Nulu","454","Incognito Camo Alpine White Multi","",null,null,13.0,52.0,null,null,4.0,12.0,12.0,10.0,2.0,null,null,null,null,null,null,null,null,null,null,{"$f":"SUM(L442:U442)","v":40},{"$f":"ROUND(AA442*H442,2)","v":520},{"$f":"ROUND(AA442*I442,2)","v":2080}]
[null,"Nylon, Lycra® elastane","001","Black",null,null,null,13.0,52.0,null,null,4.0,12.0,12.0,10.0,2.0,null,null,null,null,null,null,null,null,null,null,40,520,2080]
[null,null,"00","White",null,null,null,13.0,52.0,null,null,4.0,8.0,8.0,8.0,2.0,null,null,null,null,null,null,null,null,null,null,30,390,1560]
[null,null,"655","Formation Camo Deep Coal Multi",null,null,null,13.0,52.0,null,null,2.0,6.0,6.0,4.0,null,null,null,null,null,null,null,null,null,null,null,18,234,936]
[null,null,"677","Wee Are From Space Dark Carbon Ice Grey",null,null,null,13.0,52.0,null,null,2.0,6.0,6.0,4.0,null,null,null,null,null,null,null,null,null,null,null,18,234,936]
[]
[null,null,null,null,null,null,null,null,null,null,null,"4/XS","6/S","8/M","10/L","12/XL",null,null,null,null,null,null,null,null,null,null,"Total","Wholesale","Retail"]
["54034970","lululemon: Held Tight Tank","777","Angel Wing ","",null,null,11.0,44.0,null,null,6.0,14.0,14.0,8.0,null,null,null,null,null,null,null,null,null,null,null,{"$f":"SUM(L449:U449)","v":42},{"$f":"ROUND(AA449*H449,2)","v":462},{"$f":"ROUND(AA449*I449,2)","v":1848}]
[null,"Pima Cotton, Lyocell, Lycra® elastane","911","Soft Sand",null,null,null,11.0,44.0,null,null,6.0,14.0,14.0,8.0,null,null,null,null,null,null,null,null,null,null,null,42,462,1848]
[null,null,"001","Black",null,null,null,11.0,44.0,null,null,6.0,14.0,14.0,8.0,null,null,null,null,null,null,null,null,null,null,null,42,462,1848]
[]
[]
[]
[null,null,null,null,null,null,null,null,null,null,null,"4/XS","6/S","8/M","10/L","12/XL",null,null,null,null,null,null,null,null,null,null,"Total","Wholesale","Retail"]
["53853529","lululemon: Breeze By Short Sleeve Squad","110","White/white","",null,null,17.0,68.0,null,null,4.0,10.0,10.0,8.0,2.0,null,null,null,null,null,null,null,null,null,null,{"$f":"SUM(L456:U456)","v":34},{"$f":"ROUND(AA456*H456,2)","v":578},{"$f":"ROUND(AA456*I456,2)","v":2312}]
[null,"Nylon, Polyester,  X-static® nylon"]
[]
[]
[]
[]
[null,null,null,null,null,null,null,null,null,null,null,"4/XS","6/S","8/M","10/L","12/XL",null,null,null,null,null,null,null,null,null,null,"Total","Wholesale","Retail"]
["55507594","lululemon: Train to Be Short Sleeve","495","White/Luna",null,null,null,18.5,74.0,null,null,4.0,14.0,14.0,12.0,2.0,null,null,null,null,null,null,null,null,null,null,{"$f":"SUM(L463:U463)","v":46},{"$f":"ROUND(AA463*H463,2)","v":851},{"$f":"ROUND(AA463*I463,2)","v":3404}]
[null,"Nylon, Polyester","001","Black",null,null,null,18.5,74.0,null,null,4.0,14.0,14.0,12.0,2.0,null,null,null,null,null,null,null,null,null,null,46,851,3404]
[]
[]
[]
[]
[null,null,null,null,null,null,null,null,null,null,null,"4/XS","6/S","8/M","10/L","12/XL",null,null,null,null,null,null,null,null,null,null,"Total","Wholesale","Retail"]
["54942560","lululemon: Up for Down Time Long Sleeve","028","Silk Rose",null,null,null,21.0,84.0,null,null,2.0,6.0,6.0,4.0,null,null,null,null,null,null,null,null,null,null,null,{"$f":"SUM(L470:U470)","v":18},{"$f":"ROUND(AA470*H470,2)","v":378},{"$f":"ROUND(AA470*I470,2)","v":1512}]
[null,"Modal, Silk, Elastane","550","Spiced Bronze",null,null,null,21.0,84.0,null,null,2.0,6.0,6.0,4.0,null,null,null,null,null,null,null,null,null,null,null,18,378,1512]
[]
[]
[]
[]
[null,null,null,null,null,null,null,null,null,null,null,"4/XS","6/S","8/M","10/L","12/XL",null,null,null,null,null,null,null,null,null,null,"Total","Wholesale","Retail"]
["53549622","lululemon: Swiftly Tech Long Sleeve 2.0 Shibori","300","Shibori Stripe Midnight Orchid",null,null,null,21.0,84.0,null,null,4.0,4.0,6.0,6.0,null,null,null,null,null,null,null,null,null,null,null,{"$f":"SUM(L477:U477)","v":20},{"$f":"ROUND(AA477*H477,2)","v":420},{"$f":"ROUND(AA477*I477,2)","v":1680}]
[null,"Nylon, Polyester,  X-static® nylon, Elastane"]
[]
[]
[]
[]
[]
[null,null,null,null,null,null,null,null,null,null,null,null,null,null,null,null,null,null,null,null,null,null,null,null,null,null,null,null,null,"Subtotal for Shirts:",{"$f":"ROUND(SUM(AA398:AA481),2)","v":950},15527,62108]
[]
[]
[null,null,null,"Sports Bras"]
[]
[null,null,null,null,null,null,null,null,null,null,null,"4/XS","6/S","8/M","10/L","12/XL",null,null,null,null,null,null,null,null,null,null,"Total","Wholesale","Retail"]
["47677273","lululemon: Energy Bra Long Line Ice Dye","904","Ice Wash Asphalt Grey",null,null,null,18.5,74.0,null,null,2.0,6.0,6.0,4.0,2.0,null,null,null,null,null,null,null,null,null,null,{"$f":"SUM(L490:U490)","v":20},{"$f":"ROUND(AA490*H490,2)","v":370},{"$f":"ROUND(AA490*I490,2)","v":1480}]
[null,"Nylon, Lycra® elastane","902","Ice Wash Moss Green",null,null,null,18.5,74.0,null,null,2.0,6.0,6.0,4.0,2.0,null,null,null,null,null,null,null,null,null,null,20,370,1480]
[]
[]
[]
[]
[]
[]
[null,null,null,null,null,null,null,null,null,null,null,"4/XS","6/S","8/M","10/L","12/XL",null,null,null,null,null,null,null,null,null,null,"Total","Wholesale","Retail"]
["54413174","lululemon: Invigorate Bra Long Line","001","Black",null,null,null,16.0,64.0,null,null,2.0,12.0,12.0,8.0,2.0,null,null,null,null,null,null,null,null,null,null,{"$f":"SUM(L499:U499)","v":36},{"$f":"ROUND(AA499*H499,2)","v":576},{"$f":"ROUND(AA499*I499,2)","v":2304}]
[null,"Nylon, Polyester,  X-static® nylon, Elastane","00","White",null,null,null,16.0,64.0,null,null,2.0,6.0,6.0,4.0,2.0,null,null,null,null,null,null,null,null,null,null,20,320,1280]
[null,null,"477","Wee Are From Space Nimbus Battleship/Nimbus",null,null,null,16.0,64.0,null,null,null,8.0,8.0,8.0,null,null,null,null,null,null,null,null,null,null,null,24,384,1536]
[null,null,"007","Brier Rose",null,null,null,16.0,64.0,null,null,2.0,8.0,8.0,8.0,null,null,null,null,null,null,null,null,null,null,null,26,416,1664]
[null,null,"204","Iron Blue/True Navy",null,null,null,16.0,64.0,null,null,null,10.0,10.0,6.0,null,null,null,null,null,null,null,null,null,null,null,26,416,1664]
[]
[]
[]
[null,null,null,null,null,null,null,null,null,null,null,"4/XS","6/S","8/M","10/L","12/XL",null,null,null,null,null,null,null,null,null,null,"Total","Wholesale","Retail"]
["53026969","lululemon: Like a Cloud Bra","001","Black",null,null,null,16.0,64.0,null,null,6.0,12.0,12.0,10.0,4.0,null,null,null,null,null,null,null,null,null,null,{"$f":"SUM(L508:U508)","v":44},{"$f":"ROUND(AA508*H508,2)","v":704},{"$f":"ROUND(AA508*I508,2)","v":2816}]
[null,"Nylon, Elastane","737","Ancient Copper",null,null,null,16.0,64.0,null,null,6.0,10.0,10.0,8.0,4.0,null,null,null,null,null,null,null,null,null,null,38,608,2432]
[]
[]
[]
[]
[]
[]
[null,null,null,null,null,null,null,null,null,null,null,"4/XS","6/S","8/M","10/L","12/XL",null,null,null,null,null,null,null,null,null,null,"Total","Wholesale","Retail"]
["50615566","lululemon: Energy Bra High Neck","818","Bronze Green",null,null,null,16.0,64.0,null,null,2.0,12.0,10.0,6.0,2.0,null,null,null,null,null,null,null,null,null,null,{"$f":"SUM(L517:U517)","v":32},{"$f":"ROUND(AA517*H517,2)","v":512},{"$f":"ROUND(AA517*I517,2)","v":2048}]
[null,"Nylon, Lycra® elastane","00","White",null,null,null,16.0,64.0,null,null,2.0,8.0,8.0,6.0,2.0,null,null,null,null,null,null,null,null,null,null,26,416,1664]
[null,null,"001","Black",null,null,null,16.0,64.0,null,null,4.0,12.0,12.0,8.0,2.0,null,null,null,null,null,null,null,null,null,null,38,608,2432]
[null,null,"999","Asphalt Grey",null,null,null,16.0,64.0,null,null,4.0,10.0,10.0,4.0,null,null,null,null,null,null,null,null,null,null,null,28,448,1792]
[]
[]
[]
[null,null,null,null,null,null,null,null,null,null,null,"4/XS","6/S","8/M","10/L","12/XL",null,null,null,null,null,null,null,null,null,null,"Total","Wholesale","Retail"]
["54617139","lululemon: Stash It All Bra","737","Ancient Copper",null,null,null,18.5,74.0,null,null,6.0,14.0,14.0,10.0,4.0,null,null,null,null,null,null,null,null,null,null,{"$f":"SUM(L525:U525)","v":48},{"$f":"ROUND(AA525*H525,2)","v":888},{"$f":"ROUND(AA525*I525,2)","v":3552}]
[null,"Nylon, Lycra® elastane","001","Black",null,null,null,18.5,74.0,null,null,6.0,16.0,16.0,10.0,4.0,null,null,null,null,null,null,null,null,null,null,52,962,3848]
[]
[]
[]
[]
[]
[null,null,null,null,null,null,null,null,null,null,null,"4/XS","6/S","8/M","10/L","12/XL",null,null,null,null,null,null,null,null,null,null,"Total","Wholesale","Retail"]
["53027223","lululemon: Enlite Bra Zip Front","911","Soft Sand",null,null,null,27.0,108.0,null,null,6.0,14.0,14.0,12.0,4.0,null,null,null,null,null,null,null,null,null,null,{"$f":"SUM(L533:P533)","v":50},{"$f":"ROUND(AA533*H533,2)","v":1350},{"$f":"ROUND(AA533*I533,2)","v":5400}]
[null,"Nylon, Lycra® elastane","001","Black",null,null,null,27.0,108.0,null,null,6.0,12.0,12.0,10.0,6.0,null,null,null,null,null,null,null,null,null,null,46,1242,4968]
[null,null,"655","Formation Camo Deep Coal Multi",null,null,null,27.0,108.0,null,null,6.0,12.0,12.0,10.0,4.0,null,null,null,null,null,null,null,null,null,null,44,1188,4752]
[null,null,"775","Barely Biege",null,null,null,27.0,108.0,null,null,6.0,14.0,14.0,12.0,4.0,null,null,null,null,null,null,null,null,null,null,50,1350,5400]
[]
[]
[]
[null,null,null,null,null,null,null,null,null,null,null,"4/XS","6/S","8/M","10/L","12/XL",null,null,null,null,null,null,null,null,null,null,"Total","Wholesale","Retail"]
["54773049","lululemon: Free To Be Serene Bra High Neck","944","Summer Shade Ice Grey Multi",null,null,null,16.0,64.0,null,null,4.0,12.0,10.0,10.0,4.0,null,null,null,null,null,null,null,null,null,null,{"$f":"SUM(L541:U541)","v":40},{"$f":"ROUND(AA541*H541,2)","v":640},{"$f":"ROUND(AA541*I541,2)","v":2560}]
[null,"Nylon, Lycra® elastane","00","White",null,null,null,16.0,64.0,null,null,6.0,8.0,8.0,6.0,2.0,null,null,null,null,null,null,null,null,null,null,30,480,1920]
[null,null,"001","Black",null,null,null,16.0,64.0,null,null,8.0,12.0,12.0,12.0,4.0,null,null,null,null,null,null,null,null,null,null,48,768,3072]
[null,null,"088","Misty Pink",null,null,null,16.0,64.0,null,null,4.0,8.0,8.0,6.0,null,null,null,null,null,null,null,null,null,null,null,26,416,1664]
[null,null,"696","Heathered Black",null,null,null,16.0,64.0,null,null,2.0,10.0,10.0,4.0,2.0,null,null,null,null,null,null,null,null,null,null,28,448,1792]
[]
[]
[]
[null,null,null,null,null,null,null,null,null,null,null,"4/XS","6/S","8/M","10/L","12/XL",null,null,null,null,null,null,null,null,null,null,"Total","Wholesale","Retail"]
["54964622","lululemon: Set Challenger Bra","444","Graphite Grey",null,null,null,18.5,74.0,null,null,4.0,12.0,12.0,6.0,2.0,null,null,null,null,null,null,null,null,null,null,{"$f":"SUM(L550:U550)","v":36},{"$f":"ROUND(AA550*H550,2)","v":666},{"$f":"ROUND(AA550*I550,2)","v":2664}]
[null,"Nylon, Lycra® elastane","575","Lemon Vibe",null,null,null,18.5,74.0,null,null,2.0,6.0,6.0,4.0,null,null,null,null,null,null,null,null,null,null,null,18,333,1332]
[null,null,"624","Island Mist",null,null,null,18.5,74.0,null,null,4.0,10.0,10.0,6.0,2.0,null,null,null,null,null,null,null,null,null,null,32,592,2368]
[]
[]
[]
[]
[]
[null,null,null,null,null,null,null,null,null,null,null,"4/XS","6/S","8/M","10/L","12/XL",null,null,null,null,null,null,null,null,null,null,"Total","Wholesale","Retail"]
["54613328","lululemon: Adapt the Strap Bra","827","Night Diver",null,null,null,22.0,88.0,null,null,6.0,12.0,12.0,10.0,4.0,null,null,null,null,null,null,null,null,null,null,{"$f":"SUM(L559:U559)","v":44},{"$f":"ROUND(AA559*H559,2)","v":968},{"$f":"ROUND(AA559*I559,2)","v":3872}]
[null,"Ultralu","001","Black",null,null,null,22.0,88.0,null,null,8.0,14.0,14.0,12.0,4.0,null,null,null,null,null,null,null,null,null,null,52,1144,4576]
[]
[]
[]
[]
[]
[null,null,null,null,null,null,null,null,null,null,null,"4/XS","6/S","8/M","10/L","12/XL",null,null,null,null,null,null,null,null,null,null,"Total","Wholesale","Retail"]
["53045738","lululemon:Swift Speed Bra","001","Black",null,null,null,22.0,88.0,null,null,8.0,14.0,14.0,12.0,6.0,null,null,null,null,null,null,null,null,null,null,{"$f":"SUM(L567:U567)","v":54},{"$f":"ROUND(AA567*H567,2)","v":1188},{"$f":"ROUND(AA567*I567,2)","v":4752}]
[null,"Nylon, Elastane"]
[]
[]
[]
[]
[]
[null,null,null,null,null,null,null,null,null,null,null,null,null,null,null,null,null,null,null,null,null,null,null,null,null,null,null,null,null,"Subtotal for Sports Bras:",{"$f":"ROUND(SUM(AA488:AA573),2)","v":1076},20771,83084]
[]
[]
[null,null,null,"Shorts"]
[]
[]
[null,null,null,null,null,null,null,null,null,null,null,"4/XS","6/S","8/M","10/L","12/XL",null,null,null,null,null,null,null,null,null,null,"Total","Wholesale","Retail"]
["52398070 ","lululemon: Fast and Free Short 6\"","904","Ice Wash Asphalt Grey",null,null,null,18.5,74.0,null,null,4.0,12.0,12.0,6.0,2.0,null,null,null,null,null,null,null,null,null,null,{"$f":"SUM(L581:U581)","v":36},{"$f":"ROUND(AA581*H581,2)","v":666},{"$f":"ROUND(AA581*I581,2)","v":2664}]
[null,"Nylon, Lycra® elastane","902","Ice Wash Moss Green",null,null,null,18.5,74.0,null,null,4.0,10.0,10.0,6.0,2.0,null,null,null,null,null,null,null,null,null,null,32,592,2368]
[null,null,"901","Ice Wash Cerulean Blue",null,null,null,18.5,74.0,null,null,2.0,6.0,6.0,4.0,2.0,null,null,null,null,null,null,null,null,null,null,20,370,1480]
[]
[]
[null,null,null,null,null,null,null,null,null,null,null,null,null,null,null,null,null,null,null,null,null,null,null,null,null,null,{"$f":"SUM(L586:U586)","v":0},{"$f":"ROUND(AA586*H586,2)","v":0},{"$f":"ROUND(AA586*I586,2)","v":0}]
[]
[]
[]
[null,null,null,null,null,null,null,null,null,null,null,"4/XS","6/S","8/M","10/L","12/XL",null,null,null,null,null,null,null,null,null,null,"Total","Wholesale","Retail"]
["53909057","lululemon: Fast and Free Short 10\"","902","Ice Wash Moss Green",null,null,null,21.0,84.0,null,null,8.0,10.0,10.0,8.0,4.0,null,null,null,null,null,null,null,null,null,null,{"$f":"SUM(L591:U591)","v":40},{"$f":"ROUND(AA591*H591,2)","v":840},{"$f":"ROUND(AA591*I591,2)","v":3360}]
[null,"Nylon, Lycra® elastane","904","Ice Wash Asphalt Grey",null,null,null,21.0,84.0,null,null,8.0,10.0,10.0,8.0,4.0,null,null,null,null,null,null,null,null,null,null,40,840,3360]
[null,null,"901","Ice Wash Cerulean Blue",null,null,null,21.0,84.0,null,null,4.0,6.0,6.0,4.0,2.0,null,null,null,null,null,null,null,null,null,null,22,462,1848]
[]
[]
[]
[]
[null,null,null,null,null,null,null,null,null,null,null,"4/XS","6/S","8/M","10/L","12/XL",null,null,null,null,null,null,null,null,null,null,"Total","Wholesale","Retail"]
["52216090","lululemon: Hotty Hot Short II 2.5\"","091","Incognito Camo Multi Grey/Black",null,null,null,14.5,58.0,null,null,4.0,12.0,12.0,10.0,2.0,null,null,null,null,null,null,null,null,null,null,{"$f":"SUM(L599:U599)","v":40},{"$f":"ROUND(AA599*H599,2)","v":580},{"$f":"ROUND(AA599*I599,2)","v":2320}]
[null,"Recycled Polyester, Elastane","583","Hazy Jade",null,null,null,14.5,58.0,null,null,4.0,12.0,12.0,8.0,2.0,null,null,null,null,null,null,null,null,null,null,38,551,2204]
[null,null,"463","Heritage 365 Camo Brown Earth Multi",null,null,null,14.5,58.0,null,null,4.0,10.0,10.0,8.0,2.0,null,null,null,null,null,null,null,null,null,null,34,493,1972]
[null,null,"013","True Navy",null,null,null,14.5,58.0,null,null,2.0,8.0,8.0,4.0,4.0,null,null,null,null,null,null,null,null,null,null,26,377,1508]
[null,null,"001","Black",null,null,null,14.5,58.0,null,null,4.0,12.0,12.0,8.0,6.0,null,null,null,null,null,null,null,null,null,null,42,609,2436]
[]
[]
[]
[null,null,null,null,null,null,null,null,null,null,null,"4/XS","6/S","8/M","10/L","12/XL",null,null,null,null,null,null,null,null,null,null,"Total","Wholesale","Retail"]
["52131919","lululemon: Wunder Train High-Rise Short 6\"","013","True Navy",null,null,null,18.5,74.0,null,null,4.0,10.0,10.0,8.0,4.0,null,null,null,null,null,null,null,null,null,null,{"$f":"SUM(L608:U608)","v":36},{"$f":"ROUND(AA608*H608,2)","v":666},{"$f":"ROUND(AA608*I608,2)","v":2664}]
[null,"Nylon, Lycra® elastane","001 ","Black",null,null,null,18.5,74.0,null,null,4.0,12.0,12.0,10.0,6.0,null,null,null,null,null,null,null,null,null,null,44,814,3256]
[null,null,"463","Heritage 365 Camo Brown Earth Multi",null,null,null,18.5,74.0,null,null,2.0,6.0,6.0,4.0,null,null,null,null,null,null,null,null,null,null,null,18,333,1332]
[]
[]
[null,null,null,null,null,null,null,null,null,null,null,null,null,null,null,null,null,null,null,null,null,null,null,null,null,null,{"$f":"SUM(L613:U613)","v":0},{"$f":"ROUND(AA613*H613,2)","v":0},{"$f":"ROUND(AA613*I613,2)","v":0}]
[]
[]
[null,null,null,null,null,null,null,null,null,null,null,"4/XS","6/S","8/M","10/L","12/XL",null,null,null,null,null,null,null,null,null,null,"Total","Wholesale","Retail"]
["43708932 ","lululemon: Invigorate High-Rise Short 10\"","737","Ancient Copper ",null,null,null,18.5,74.0,null,null,6.0,10.0,10.0,8.0,4.0,null,null,null,null,null,null,null,null,null,null,{"$f":"SUM(L617:U617)","v":38},{"$f":"ROUND(AA617*H617,2)","v":703},{"$f":"ROUND(AA617*I617,2)","v":2812}]
[null,"Nylon, Lycra® elastane","696","Heathered Black",null,null,null,18.5,74.0,null,null,8.0,12.0,12.0,10.0,6.0,null,null,null,null,null,null,null,null,null,null,48,888,3552]
[]
[]
[]
[]
[]
[null,null,null,null,null,null,null,null,null,null,null,"4/XS","6/S","8/M","10/L","12/XL",null,null,null,null,null,null,null,null,null,null,"Total","Wholesale","Retail"]
["52801164","lululemon: Speed Up Short High-Rise 2.5\"","411","Heather Lux Multi Hazel Green/Hazel Green",null,null,null,14.5,58.0,null,null,8.0,12.0,12.0,10.0,4.0,null,null,null,null,null,null,null,null,null,null,{"$f":"SUM(L625:U625)","v":46},{"$f":"ROUND(AA625*H625,2)","v":667},{"$f":"ROUND(AA625*I625,2)","v":2668}]
[null,"Recycled Polyester, Elastane","00","White",null,null,null,14.5,58.0,null,null,6.0,10.0,10.0,8.0,2.0,null,null,null,null,null,null,null,null,null,null,36,522,2088]
[null,null,null,null,null,null,null,null,null,null,null,null,null,null,null,null,null,null,null,null,null,null,null,null,null,null,0,0,0]
[null,null,null,null,null,null,null,null,null,null,null,null,null,null,null,null,null,null,null,null,null,null,null,null,null,null,0,0,0]
[null,null,null,null,null,null,null,null,null,null,null,null,null,null,null,null,null,null,null,null,null,null,null,null,null,null,0,0,0]
[null,null,null,null,null,null,null,null,null,null,null,null,null,null,null,null,null,null,null,null,null,null,null,null,null,null,0,0,0]
[]
[]
[null,null,null,null,null,null,null,null,null,null,null,"4/XS","6/S","8/M","10/L","12/XL",null,null,null,null,null,null,null,null,null,null,"Total","Wholesale","Retail"]
["0925196","lululemon: Align™ Super High-Rise Short 10\" Game Day","500","Game Day Dark Chrome Black Multi",null,null,null,14.5,58.0,null,null,8.0,12.0,12.0,10.0,6.0,null,null,null,null,null,null,null,null,null,null,{"$f":"SUM(L634:U634)","v":48},{"$f":"ROUND(AA634*H634,2)","v":696},{"$f":"ROUND(AA634*I634,2)","v":2784}]
[null,"Nylon, Lycra® elastane","600","Game Day Blue Multi",null,null,null,14.5,58.0,null,null,4.0,6.0,6.0,4.0,null,null,null,null,null,null,null,null,null,null,null,20,290,1160]
[]
[]
[]
[]
[]
[null,null,null,null,null,null,null,null,null,null,null,null,null,null,null,null,null,null,null,null,null,null,null,null,null,null,null,null,null,"Subtotal for Shorts:",{"$f":"ROUND(SUM(AA580:AA640),2)","v":704},11959,47836]
[]
[]
[null,null,null,"Underwear"]
[]
[]
[null,null,null,null,null,null,null,null,null,null,null,"4/XS","6/S","8/M","10/L","12/XL",null,null,null,null,null,null,null,null,null,null,"Total","Wholesale","Retail"]
[" 48437610","lululemon: Smooth Seamless Thong 3 Pack","977","Black/Misty Shell/Soft Sand",null,null,null,12.0,48.0,null,null,6.0,10.0,10.0,8.0,6.0,null,null,null,null,null,null,null,null,null,null,{"$f":"SUM(L648:U648)","v":40},{"$f":"ROUND(AA648*H648,2)","v":480},{"$f":"ROUND(AA648*I648,2)","v":1920}]
[null,"Nylon, Lycra® elastane","976","Inspirit Polka White Black/Pink Pastel/Chrome",null,null,null,12.0,48.0,null,null,6.0,10.0,10.0,8.0,6.0,null,null,null,null,null,null,null,null,null,null,40,480,1920]
[null,null,"877","Black/Black/Black",null,null,null,12.0,48.0,null,null,8.0,10.0,10.0,8.0,6.0,null,null,null,null,null,null,null,null,null,null,42,504,2016]
[null,null,"876","Black/Misty Shell/Lunar Rock",null,null,null,12.0,48.0,null,null,8.0,10.0,10.0,8.0,6.0,null,null,null,null,null,null,null,null,null,null,42,504,2016]
[]
[null,null,null,null,null,null,null,null,null,null,null,null,null,null,null,null,null,null,null,null,null,null,null,null,null,null,{"$f":"SUM(L653:U653)","v":0},{"$f":"ROUND(AA653*H653,2)","v":0},{"$f":"ROUND(AA653*I653,2)","v":0}]
[]
[null,null,null,null,null,null,null,null,null,null,null,"4/XS","6/S","8/M","10/L","12/XL",null,null,null,null,null,null,null,null,null,null,"Total","Wholesale","Retail"]
["53831103","lululemon: Smooth Seamless Thong 5 Pack","909","Black/Soft Sand/Free Spirit Alpine White Black/Black/Garnet",null,null,null,18.5,74.0,null,null,6.0,12.0,12.0,10.0,6.0,null,null,null,null,null,null,null,null,null,null,{"$f":"SUM(L656:P656)","v":46},{"$f":"ROUND(AA656*H656,2)","v":851},{"$f":"ROUND(AA656*I656,2)","v":3404}]
[null,"Nylon, Lycra® elastane",null,null,null,null,null,null,null,null,null,null,null,null,null,null,null,null,null,null,null,null,null,null,null,null,{"$f":"SUM(L657:U657)","v":0},0,0]
[]
[]
[]
[]
[null,null,null,null,null,null,null,null,null,null,null,"4/XS","6/S","8/M","10/L","12/XL",null,null,null,null,null,null,null,null,null,null,"Total","Wholesale","Retail"]
["51683068","lululemon: Smooth Seamless Hipster 5 Pack","909","Black/Soft Sand/Free Spirit Alpine White Black/Black/Garnet",null,null,null,18.5,74.0,null,null,6.0,10.0,10.0,8.0,4.0,null,null,null,null,null,null,null,null,null,null,{"$f":"SUM(L663:P663)","v":38},{"$f":"ROUND(AA663*H663,2)","v":703},{"$f":"ROUND(AA663*I663,2)","v":2812}]
[null,"Nylon, Lycra® elastane",null,null,null,null,null,null,null,null,null,null,null,null,null,null,null,null,null,null,null,null,null,null,null,null,{"$f":"SUM(L664:U664)","v":0},0,0]
[]
[]
[]
[]
[null,null,null,null,null,null,null,null,null,null,null,"4/XS","6/S","8/M","10/L","12/XL",null,null,null,null,null,null,null,null,null,null,"Total","Wholesale","Retail"]
["54550561","lululemon: Soft Breathable Thong 3 Pack","977","Black/Misty Shell/Soft Sand","",null,null,12.0,48.0,null,null,4.0,10.0,10.0,8.0,4.0,null,null,null,null,null,null,null,null,null,null,{"$f":"SUM(L670:U670)","v":36},{"$f":"ROUND(AA670*H670,2)","v":432},{"$f":"ROUND(AA670*I670,2)","v":1728}]
[null,"Modal, Lycra® elastane","966","Inspirit Polka White Black/Brier Rose/Chrome",null,null,null,12.0,48.0,null,null,4.0,8.0,8.0,6.0,4.0,null,null,null,null,null,null,null,null,null,null,30,360,1440]
[null,null,"877","Black/Black/Black",null,null,null,12.0,48.0,null,null,4.0,10.0,10.0,8.0,4.0,null,null,null,null,null,null,null,null,null,null,36,432,1728]
[]
[]
[]
[null,null,null,null,null,null,null,null,null,null,null,"4/XS","6/S","8/M","10/L","12/XL",null,null,null,null,null,null,null,null,null,null,"Total","Wholesale","Retail"]
["53769485","lululemon: Soft Breathable Bikini 3 Pack","977","Black/Misty Shell/Soft Sand","",null,null,12.0,48.0,null,null,4.0,10.0,10.0,8.0,4.0,null,null,null,null,null,null,null,null,null,null,{"$f":"SUM(L677:U677)","v":36},{"$f":"ROUND(AA677*H677,2)","v":432},{"$f":"ROUND(AA677*I677,2)","v":1728}]
[null,"Modal, Lycra® elastane","966","Inspirit Polka White Black/Brier Rose/Chrome",null,null,null,12.0,48.0,null,null,4.0,8.0,8.0,6.0,4.0,null,null,null,null,null,null,null,null,null,null,30,360,1440]
[null,null,"877","Black/Black/Black",null,null,null,12.0,48.0,null,null,6.0,10.0,10.0,10.0,6.0,null,null,null,null,null,null,null,null,null,null,42,504,2016]
[]
[]
[]
[null,null,null,null,null,null,null,null,null,null,null,"4/XS","6/S","8/M","10/L","12/XL",null,null,null,null,null,null,null,null,null,null,"Total","Wholesale","Retail"]
["53543583","lululemon: Simply There Boyshort","001","Black","",null,null,5.0,20.0,null,null,4.0,10.0,10.0,6.0,4.0,null,null,null,null,null,null,null,null,null,null,{"$f":"SUM(L684:P684)","v":34},{"$f":"ROUND(AA684*H684,2)","v":170},{"$f":"ROUND(AA684*I684,2)","v":680}]
[null,"Modal, Lycra® elastane","323","Collage Camo Mini Black Multi"]
[]
[]
[]
[]
[null,null,null,null,null,null,null,null,null,null,null,"4/XS","6/S","8/M","10/L","12/XL",null,null,null,null,null,null,null,null,null,null,"Total","Wholesale","Retail"]
["54465000","lululemon: Awake to Lace Cheeky Bikini","001","Black","",null,null,5.5,22.0,null,null,4.0,10.0,10.0,8.0,4.0,null,null,null,null,null,null,null,null,null,null,{"$f":"SUM(L691:P691)","v":36},{"$f":"ROUND(AA691*H691,2)","v":198},{"$f":"ROUND(AA691*I691,2)","v":792}]
[null,"Nylon, Lycra® elastane","449","Ballet Slipper ","",null,null,5.5,22.0,null,null,4.0,10.0,10.0,8.0,4.0,null,null,null,null,null,null,null,null,null,null,36,198,792]
[null,null,"911","Soft Sand","",null,null,5.5,22.0,null,null,4.0,10.0,10.0,8.0,4.0,null,null,null,null,null,null,null,null,null,null,36,198,792]
[null,null,null,null,null,null,null,null,null,null,null,null,null,null,null,null,null,null,null,null,null,null,null,null,null,null,0,0,0]
[null,null,null,null,null,null,null,null,null,null,null,null,null,null,null,null,null,null,null,null,null,null,null,null,null,null,0,0,0]
[]
[]
[null,null,null,null,null,null,null,null,null,null,null,null,null,null,null,null,null,null,null,null,null,null,null,null,null,null,null,null,null,"Subtotal for Underwear:",{"$f":"ROUND(SUM(AA645:AA697),2)","v":600},6806,27224]
[]
[]
[null,null,null,"Socks"]
[]
[null,null,null,null,null,null,null,null,null,null,null,null,"S/M",null,"M/L",null,null,null,null,null,null,null,null,null,null,null,"Total","Wholesale","Retail"]
["52225315","lululemon: Secret Sock 3 Pack","001","Black","",null,null,9.5,38.0,null,null,null,12.0,null,12.0,null,null,null,null,null,null,null,null,null,null,null,{"$f":"SUM(L704:P704)","v":24},{"$f":"ROUND(AA704*H704,2)","v":228},{"$f":"ROUND(AA704*I704,2)","v":912}]
[null,"Nylon, Lycra® elastane","00","White",null,null,null,9.5,38.0,null,null,null,12.0,null,12.0,null,null,null,null,null,null,null,null,null,null,null,24,228,912]
[null,null,"127","White/Silver Drop/Black",null,null,null,9.5,38.0,null,null,null,12.0,null,12.0,null,null,null,null,null,null,null,null,null,null,null,24,228,912]
[]
[]
[]
[]
[]
[null,null,null,null,null,null,null,null,null,null,null,null,"S/M",null,"M/L",null,null,null,null,null,null,null,null,null,null,null,"Total","Wholesale","Retail"]
["53827812","lululemon: Tale To Tell Quarter Sock 2 Pack","292","White/Vapor/Black","",null,null,7.0,28.0,null,null,null,12.0,null,12.0,null,null,null,null,null,null,null,null,null,null,null,{"$f":"SUM(L713:P713)","v":24},{"$f":"ROUND(AA713*H713,2)","v":168},{"$f":"ROUND(AA713*I713,2)","v":672}]
[null,"Nylon, Elastane","252","White/Black/Carnation Red",null,null,null,7.0,28.0,null,null,null,12.0,null,12.0,null,null,null,null,null,null,null,null,null,null,null,24,168,672]
[null,null,"242","White/Misty Pink/Graphite Grey",null,null,null,7.0,28.0,null,null,null,12.0,null,12.0,null,null,null,null,null,null,null,null,null,null,null,24,168,672]
[null,null,"232","White/Misty Pink/Graphite Grey",null,null,null,7.0,28.0,null,null,null,12.0,null,12.0,null,null,null,null,null,null,null,null,null,null,null,24,168,672]
[]
[]
[null,null,null,null,null,null,null,null,null,null,null,null,"S/M",null,"M/L",null,null,null,null,null,null,null,null,null,null,null,"Total","Wholesale","Retail"]
["53069076","lululemon: Evolution Leg Warmer","071","Black/Graphite Grey","",null,null,14.5,58.0,null,null,null,4.0,null,4.0,null,null,null,null,null,null,null,null,null,null,null,{"$f":"SUM(L720:P720)","v":8},{"$f":"ROUND(AA720*H720,2)","v":116},{"$f":"ROUND(AA720*I720,2)","v":464}]
[null,"Nylon,  Viscose,  Acrylic, Cashmere,  Lycra® elastane"]
[]
[]
[]
[]
[]
[null,null,null,null,null,null,null,null,null,null,null,null,"S/M",null,"M/L",null,null,null,null,null,null,null,null,null,null,null,"Total","Wholesale","Retail"]
["47013701","lululemon: On the Fly Sock3 Pack","047","Black/Battleship/Black","",null,null,7.0,28.0,null,null,null,12.0,null,12.0,null,null,null,null,null,null,null,null,null,null,null,{"$f":"SUM(L728:P728)","v":24},{"$f":"ROUND(AA728*H728,2)","v":168},{"$f":"ROUND(AA728*I728,2)","v":672}]
[null,"Nylon, Cotton, Polyester, Elastance","015","White/White/White",null,null,null,7.0,28.0,null,null,null,12.0,null,12.0,null,null,null,null,null,null,null,null,null,null,null,24,168,672]
[null,null,"019","Black/Silver Drop/White",null,null,null,7.0,28.0,null,null,null,12.0,null,12.0,null,null,null,null,null,null,null,null,null,null,null,24,168,672]
[]
[]
[]
[]
[null,null,null,null,null,null,null,null,null,null,null,null,"S/M",null,"M/L",null,null,null,null,null,null,null,null,null,null,null,"Total","Wholesale","Retail"]
["54208582","lululemon: Speed Tab Sock Silver","089","Vapor/White","",null,null,4.5,18.0,null,null,null,14.0,null,14.0,null,null,null,null,null,null,null,null,null,null,null,{"$f":"SUM(L736:P736)","v":28},{"$f":"ROUND(AA736*H736,2)","v":126},{"$f":"ROUND(AA736*I736,2)","v":504}]
[null," Nylon,  Polyester, Lycra® elastane,  X-static® nylon","001","Black",null,null,null,4.5,18.0,null,null,null,14.0,null,14.0,null,null,null,null,null,null,null,null,null,null,null,28,126,504]
[null,null,"084","Stargaze/White",null,null,null,4.5,18.0,null,null,null,14.0,null,14.0,null,null,null,null,null,null,null,null,null,null,null,28,126,504]
[]
[]
[]
[]
[]
[null,null,null,null,null,null,null,null,null,null,null,null,null,null,null,null,null,null,null,null,null,null,null,null,null,null,null,null,null,"Subtotal for Socks:",{"$f":"ROUND(SUM(AA700:AA743),2)","v":332},2354,9416]
[]
[]
[null,null,null,"Bags"]
[]
[]
[]
[null,null,null,null,null,null,null,null,null,null,null,null,null,"One Size",null,null,null,null,null,null,null,null,null,null,null,null,"Total","Wholesale","Retail"]
["52907524","lululemon: On The Beat Belt Bag 4.5L","391","Pink Pastel/Ancient Copper/Black","",null,null,14.5,58.0,null,null,null,null,12.0,null,null,null,null,null,null,null,null,null,null,null,null,{"$f":"SUM(L752:P752)","v":12},{"$f":"ROUND(AA752*H752,2)","v":174},{"$f":"ROUND(AA752*I752,2)","v":696}]
[null,"Polyester","020","Cassis",null,null,null,14.5,58.0,null,null,null,null,12.0,null,null,null,null,null,null,null,null,null,null,null,null,12,174,696]
[]
[]
[]
[]
[]
[]
[null,null,null,null,null,null,null,null,null,null,null,null,null,"One Size",null,null,null,null,null,null,null,null,null,null,null,null,"Total","Wholesale","Retail"]
["52242443 ","lululemon: City Adventurer Backpack Mini 10L","391","Pink Pastel/Ancient Copper/Black","",null,null,24.5,98.0,null,null,null,null,6.0,null,null,null,null,null,null,null,null,null,null,null,null,{"$f":"SUM(L761:P761)","v":6},{"$f":"ROUND(AA761*H761,2)","v":147},{"$f":"ROUND(AA761*I761,2)","v":588}]
[null,"Nylon, Polyester","020","Iron Blue/Grey Sage",null,null,null,24.5,98.0,null,null,null,null,6.0,null,null,null,null,null,null,null,null,null,null,null,null,6,147,588]
[null,null,"707","Blue Cast",null,null,null,24.5,98.0,null,null,null,null,6.0,null,null,null,null,null,null,null,null,null,null,null,null,6,147,588]
[null,null,"909","Black/Gold",null,null,null,24.5,98.0,null,null,null,null,6.0,null,null,null,null,null,null,null,null,null,null,null,null,6,147,588]
[]
[]
[]
[]
[null,null,null,null,null,null,null,null,null,null,null,null,null,"One Size",null,null,null,null,null,null,null,null,null,null,null,null,"Total","Wholesale","Retail"]
["51945426","lululemon: Fast and Free Backpack 13L","035","Cerulean Blue",null,null,null,32.0,128.0,null,null,null,null,6.0,null,null,null,null,null,null,null,null,null,null,null,null,{"$f":"SUM(L770:P770)","v":6},{"$f":"ROUND(AA770*H770,2)","v":192},{"$f":"ROUND(AA770*I770,2)","v":768}]
[null,"Polyurethane ","001","Black",null,null,null,32.0,128.0,null,null,null,null,6.0,null,null,null,null,null,null,null,null,null,null,null,null,6,192,768]
[]
[]
[]
[]
[]
[]
[null,null,null,null,null,null,null,null,null,null,null,null,null,"One Size",null,null,null,null,null,null,null,null,null,null,null,null,"Total","Wholesale","Retail"]
["53828786","lululemon: All Night Festival Bag 5L","009","Grey Sage","",null,null,19.5,78.0,null,null,null,null,8.0,null,null,null,null,null,null,null,null,null,null,null,null,{"$f":"SUM(L779:P779)","v":8},{"$f":"ROUND(AA779*H779,2)","v":156},{"$f":"ROUND(AA779*I779,2)","v":624}]
[null,"Nylon, Polyester","640","Pink Pastel","",null,null,19.5,78.0,null,null,null,null,8.0,null,null,null,null,null,null,null,null,null,null,null,null,8,156,624]
[null,null,"001","Black",null,null,null,19.5,78.0,null,null,null,null,8.0,null,null,null,null,null,null,null,null,null,null,null,null,8,156,624]
[null,null,"020","Cassis",null,null,null,19.5,78.0,null,null,null,null,8.0,null,null,null,null,null,null,null,null,null,null,null,null,8,156,624]
[]
[]
[]
[null,null,null,null,null,null,null,null,null,null,null,null,null,"One Size",null,null,null,null,null,null,null,null,null,null,null,null,"Total","Wholesale","Retail"]
["52959491","lululemon: Go Getter Bag 25L","696","Heathered Black/Black","",null,null,37.0,148.0,null,null,null,null,8.0,null,null,null,null,null,null,null,null,null,null,null,null,{"$f":"SUM(L787:P787)","v":8},{"$f":"ROUND(AA787*H787,2)","v":296},{"$f":"ROUND(AA787*I787,2)","v":1184}]
[null,"Polyurethane ","009","Cassis","",null,null,37.0,148.0,null,null,null,null,8.0,null,null,null,null,null,null,null,null,null,null,null,null,8,296,1184]
[]
[]
[]
[]
[]
[null,null,null,null,null,null,null,null,null,null,null,null,null,"One Size",null,null,null,null,null,null,null,null,null,null,null,null,"Total","Wholesale","Retail"]
["53629820","lululemon: On My Level Bag Large 30L","001","Black",null,null,null,37.0,148.0,null,null,null,null,8.0,null,null,null,null,null,null,null,null,null,null,null,null,{"$f":"SUM(L795:P795)","v":8},{"$f":"ROUND(AA795*H795,2)","v":296},{"$f":"ROUND(AA795*I795,2)","v":1184}]
[null,"Nylon, Polyester"]
[]
[]
[]
[]
[]
[null,null,null,null,null,null,null,null,null,null,null,null,null,"One Size",null,null,null,null,null,null,null,null,null,null,null,null,"Total","Wholesale","Retail"]
["52337581","lululemon: Travel Easy Kit 4.5L","640","Pink Pastel","",null,null,12.0,48.0,null,null,null,null,8.0,null,null,null,null,null,null,null,null,null,null,null,null,{"$f":"SUM(L803:P803)","v":8},{"$f":"ROUND(AA803*H803,2)","v":96},{"$f":"ROUND(AA803*I803,2)","v":384}]
[null,"Nylon, Polyester, Cow Hide Leather","737","Ancient Copper",null,null,null,12.0,48.0,null,null,null,null,8.0,null,null,null,null,null,null,null,null,null,null,null,null,8,96,384]
[null,null,"001","Black",null,null,null,12.0,48.0,null,null,null,null,8.0,null,null,null,null,null,null,null,null,null,null,null,null,8,96,384]
[null,null,"251","Fragment Camo Jacquard Black Deep Coal",null,null,null,12.0,48.0,null,null,null,null,8.0,null,null,null,null,null,null,null,null,null,null,null,null,8,96,384]
[]
[]
[]
[null,null,null,null,null,null,null,null,null,null,null,null,null,"One Size",null,null,null,null,null,null,null,null,null,null,null,null,"Total","Wholesale","Retail"]
["53698130","lululemon: Now And Always Tote Mini 8L","251","Fragment Camo Jacquard Black Deep Coal","",null,null,37.0,148.0,null,null,null,null,6.0,null,null,null,null,null,null,null,null,null,null,null,null,{"$f":"SUM(L811:P811)","v":6},{"$f":"ROUND(AA811*H811,2)","v":222},{"$f":"ROUND(AA811*I811,2)","v":888}]
[null,"Nylon, Polyester, Cow Hide Leather","001","Black",null,null,null,37.0,148.0,null,null,null,null,6.0,null,null,null,null,null,null,null,null,null,null,null,null,6,222,888]
[null,null,null,null,null,null,null,null,null,null,null,null,null,null,null,null,null,null,null,null,null,null,null,null,null,null,0,0,0]
[null,null,null,null,null,null,null,null,null,null,null,null,null,null,null,null,null,null,null,null,null,null,null,null,null,null,0,0,0]
[null,null,null,null,null,null,null,null,null,null,null,null,null,null,null,null,null,null,null,null,null,null,null,null,null,null,0,0,0]
[]
[null,null,null,null,null,null,null,null,null,null,null,null,null,null,null,null,null,null,null,null,null,null,null,null,null,null,{"$f":"SUM(L817:P817)","v":0},{"$f":"ROUND(AA817*H817,2)","v":0},{"$f":"ROUND(AA817*I817,2)","v":0}]
[null,null,null,null,null,null,null,null,null,null,null,null,null,"One Size",null,null,null,null,null,null,null,null,null,null,null,null,"Total","Wholesale","Retail"]
["54056171 ","lululemon: The Yoga Mat Bag","616","Foliage Overlay White Multi","",null,null,17.0,68.0,null,null,null,null,40.0,null,null,null,null,null,null,null,null,null,null,null,null,{"$f":"SUM(L819:P819)","v":40},{"$f":"ROUND(AA819*H819,2)","v":680},{"$f":"ROUND(AA819*I819,2)","v":2720}]
[null,"Polyester","001","Black",null,null,null,17.0,68.0,null,null,null,null,40.0,null,null,null,null,null,null,null,null,null,null,null,null,40,680,2720]
[null,null,"818","Heritage Grid Camo Jacquard Micro Black Deep oal",null,null,null,17.0,68.0,null,null,null,null,40.0,null,null,null,null,null,null,null,null,null,null,null,null,40,680,2720]
[]
[]
[]
[]
[]
[]
[null,null,null,null,null,null,null,null,null,null,null,null,null,"One Size",null,null,null,null,null,null,null,null,null,null,null,null,"Total","Wholesale","Retail"]
["54600887 ","lululemon: More Miles Duffel 40L","818","Heritage Grid Camo Jacquard Micro Black Deep oal","",null,null,49.5,198.0,null,null,null,null,22.0,null,null,null,null,null,null,null,null,null,null,null,null,{"$f":"SUM(L829:P829)","v":22},{"$f":"ROUND(AA829*H829,2)","v":1089},{"$f":"ROUND(AA829*I829,2)","v":4356}]
[null,"Thermoplastic polyurethane, Polyester","001","Black",null,null,null,49.5,198.0,null,null,null,null,22.0,null,null,null,null,null,null,null,null,null,null,null,null,22,1089,4356]
[null,null,null,null,null,null,null,null,null,null,null,null,null,null,null,null,null,null,null,null,null,null,null,null,null,null,0,0,0]
[]
[]
[]
[null,null,null,null,null,null,null,null,null,null,null,null,null,"One Size",null,null,null,null,null,null,null,null,null,null,null,null,"Total","Wholesale","Retail"]
["52107414","lululemon: All Hours Duffel","001","Black",null,null,null,39.5,158.0,null,null,null,null,22.0,null,null,null,null,null,null,null,null,null,null,null,null,{"$f":"SUM(L836:P836)","v":22},{"$f":"ROUND(AA836*H836,2)","v":869},{"$f":"ROUND(AA836*I836,2)","v":3476}]
[null,"Nylon, Polyester"]
[]
[]
[]
[]
[null,null,null,null,null,null,null,null,null,null,null,null,null,"One Size",null,null,null,null,null,null,null,null,null,null,null,null,"Total","Wholesale","Retail"]
["52376134","lululemon: Cross It Off Tote 20L","001","Black",null,null,null,14.5,58.0,null,null,null,null,15.0,null,null,null,null,null,null,null,null,null,null,null,null,{"$f":"SUM(L843:P843)","v":15},{"$f":"ROUND(AA843*H843,2)","v":217.5},{"$f":"ROUND(AA843*I843,2)","v":870}]
[null,"Nylon, Polyester","009","Grey Sage",null,null,null,14.5,58.0,null,null,null,null,15.0,null,null,null,null,null,null,null,null,null,null,null,null,15,217.5,870]
[null,null,"008","Pink Fawn",null,null,null,14.5,58.0,null,null,null,null,15.0,null,null,null,null,null,null,null,null,null,null,null,null,15,217.5,870]
[null,null,"031","Dark Olive",null,null,null,14.5,58.0,null,null,null,null,15.0,null,null,null,null,null,null,null,null,null,null,null,null,15,217.5,870]
[]
[]
[]
["51691426","lululemon: The Rest is Written Tote 24.5 L","640","Pink Pastel",null,null,null,null,null,null,null,null,null,"One Size",null,null,null,null,null,null,null,null,null,null,null,null,"Total","Wholesale","Retail"]
[null,"Nylon, Polyester","001","Black",null,null,null,81.5,326.0,null,null,null,null,8.0,null,null,null,null,null,null,null,null,null,null,null,null,{"$f":"SUM(L851:P851)","v":8},{"$f":"ROUND(AA851*H851,2)","v":652},{"$f":"ROUND(AA851*I851,2)","v":2608}]
[null,null,null,null,null,null,null,81.5,326.0,null,null,null,null,8.0,null,null,null,null,null,null,null,null,null,null,null,null,8,652,2608]
[]
[]
[]
[]
[null,null,null,null,null,null,null,null,null,null,null,null,null,null,null,null,null,null,null,null,null,null,null,null,null,null,null,null,null,"Subtotal for Bags:",{"$f":"ROUND(SUM(AA750:AA856),2)","v":422},10921,43684]
[]
[]
[null,null,null,"Yoga Mats"]
[]
[]
[]
[null,null,null,null,null,null,null,null,null,null,null,null,null,"One Size",null,null,null,null,null,null,null,null,null,null,null,null,"Total","Wholesale","Retail"]
["53691524","lululemon: The Reversible Mat 3mm","001 ","Black","",null,null,17.0,68.0,null,null,null,null,30.0,null,null,null,null,null,null,null,null,null,null,null,null,{"$f":"SUM(L865:P865)","v":30},{"$f":"ROUND(AA865*H865,2)","v":510},{"$f":"ROUND(AA865*I865,2)","v":2040}]
[null,"Natural rubber,  Polyurethane,  Synthetic rubber, Polyester, Nylon","16A","Chrome/Violet Verbena/Hazy Jade/Desert Teal",null,null,null,17.0,68.0,null,null,null,null,30.0,null,null,null,null,null,null,null,null,null,null,null,null,30,510,2040]
[null,null,"16B","Pink Pastel/Silk Rose/Brier Rose/Pink Pastel",null,null,null,17.0,68.0,null,null,null,null,30.0,null,null,null,null,null,null,null,null,null,null,null,null,30,510,2040]
[null,null,"16C","Slate Blue/White/Cloud Blue",null,null,null,17.0,68.0,null,null,null,null,30.0,null,null,null,null,null,null,null,null,null,null,null,null,30,510,2040]
[]
[]
[]
[null,null,null,null,null,null,null,null,null,null,null,null,null,"One Size",null,null,null,null,null,null,null,null,null,null,null,null,"Total","Wholesale","Retail"]
["54542808","lululemon: The Reversible Mat 5mm","AA1","Hazy Jade/Desert Teal","",null,null,17.0,68.0,null,null,null,null,30.0,null,null,null,null,null,null,null,null,null,null,null,null,{"$f":"SUM(L873:P873)","v":30},{"$f":"ROUND(AA873*H873,2)","v":510},{"$f":"ROUND(AA873*I873,2)","v":2040}]
[null,"Natural rubber,  Polyurethane,  Synthetic rubber, Polyester, Nylon","16A","Chrome/Violet Verbena/Hazy Jade/Desert Teal",null,null,null,19.5,78.0,null,null,null,null,30.0,null,null,null,null,null,null,null,null,null,null,null,null,30,585,2340]
[null,null,"22F","Variegated Camo Mat Dark Olive/Dark Olive",null,null,null,19.5,78.0,null,null,null,null,30.0,null,null,null,null,null,null,null,null,null,null,null,null,30,585,2340]
[null,null,"23F","Night Diver/Almost Blue/Intergalactic",null,null,null,19.5,78.0,null,null,null,null,30.0,null,null,null,null,null,null,null,null,null,null,null,null,30,585,2340]
[]
[]
[]
[]
[null,null,null,null,null,null,null,null,null,null,null,null,null,"One Size",null,null,null,null,null,null,null,null,null,null,null,null,"Total","Wholesale","Retail"]
["52095288","lululemon: Arise Mat Made with FSC-Certified Rubber 5mm","A11","Hazy Jade/Blue Fog/Iron Blue/Iron Blue","",null,null,22.0,88.0,null,null,null,null,40.0,null,null,null,null,null,null,null,null,null,null,null,null,{"$f":"SUM(L882:P882)","v":40},{"$f":"ROUND(AA882*H882,2)","v":880},{"$f":"ROUND(AA882*I882,2)","v":3520}]
[null,"Natural rubber,  Polyurethane,  Synthetic rubber, Polyester, Nylon","001","Black",null,null,null,22.0,88.0,null,null,null,null,40.0,null,null,null,null,null,null,null,null,null,null,null,null,40,880,3520]
[]
[]
[]
[]
[null,null,null,null,null,null,null,null,null,null,null,null,null,"One Size",null,null,null,null,null,null,null,null,null,null,null,null,"Total","Wholesale","Retail"]
["54216882","lululemon: Carry Onwards Mat Travel","C42","Daydream","",null,null,22.0,88.0,null,null,null,null,40.0,null,null,null,null,null,null,null,null,null,null,null,null,{"$f":"SUM(L889:P889)","v":40},{"$f":"ROUND(AA889*H889,2)","v":880},{"$f":"ROUND(AA889*I889,2)","v":3520}]
[null,"Natural rubber, Synthetic rubber, Polyester","C40","Chalky Rose/Ballet Slipper",null,null,null,22.0,88.0,null,null,null,null,40.0,null,null,null,null,null,null,null,null,null,null,null,null,40,880,3520]
[null,null,"001","Black",null,null,null,22.0,88.0,null,null,null,null,40.0,null,null,null,null,null,null,null,null,null,null,null,null,40,880,3520]
[]
[]
[]
[null,null,null,null,null,null,null,null,null,null,null,null,null,"One Size",null,null,null,null,null,null,null,null,null,null,null,null,"Total","Wholesale","Retail"]
["53030508","lululemon: The Reversible (Un) Mat Lightweight Travel","0AA","Black/White/Black","",null,null,14.5,58.0,null,null,null,null,40.0,null,null,null,null,null,null,null,null,null,null,null,null,{"$f":"SUM(L896:P896)","v":40},{"$f":"ROUND(AA896*H896,2)","v":580},{"$f":"ROUND(AA896*I896,2)","v":2320}]
[null,"Natural rubber,  Polyurethane,  Synthetic rubber, Polyester, Nylon"]
[]
[]
[]
[]
[null,null,null,null,null,null,null,null,null,null,null,null,null,"One Size",null,null,null,null,null,null,null,null,null,null,null,null,"Total","Wholesale","Retail"]
["53106787","lululemon: The Reversible (Big) Mat","0AA","Black/White/Black","",null,null,22.0,88.0,null,null,null,null,30.0,null,null,null,null,null,null,null,null,null,null,null,null,{"$f":"SUM(L903:P903)","v":30},{"$f":"ROUND(AA903*H903,2)","v":660},{"$f":"ROUND(AA903*I903,2)","v":2640}]
[null,"Natural rubber,  Polyurethane,  Synthetic rubber, Polyester, Nylon"]
[]
[]
[]
[]
[]
[null,null,null,null,null,null,null,null,null,null,null,null,null,null,null,null,null,null,null,null,null,null,null,null,null,null,null,null,null,"Subtotal for Yoga Mats:",{"$f":"ROUND(SUM(AA860:AA909),2)","v":510},9945,39780]
[]
[]
[]
[null,null,null,"Water Bottles"]
[]
[null,null,null,null,null,null,null,null,null,null,null,null,null,"One Size",null,null,null,null,null,null,null,null,null,null,null,null,"Total","Wholesale","Retail"]
["52779279","lululemon: Stay Hot Keep Cold Bottle Logo 19oz","00","White","",null,null,10.5,42.0,null,null,null,null,12.0,null,null,null,null,null,null,null,null,null,null,null,null,{"$f":"SUM(L917:P917)","v":12},{"$f":"ROUND(AA917*H917,2)","v":126},{"$f":"ROUND(AA917*I917,2)","v":504}]
[null,"Steel, Silicone","A33","Pink Pastel/Brier Rose",null,null,null,10.5,42.0,null,null,null,null,12.0,null,null,null,null,null,null,null,null,null,null,null,null,12,126,504]
[null,null,"583","Hazy Jade",null,null,null,10.5,42.0,null,null,null,null,12.0,null,null,null,null,null,null,null,null,null,null,null,null,12,126,504]
[null,null,"001","Black",null,null,null,10.5,42.0,null,null,null,null,15.0,null,null,null,null,null,null,null,null,null,null,null,null,15,157.5,630]
[]
[]
[null,null,null,null,null,null,null,null,null,null,null,null,null,"One Size",null,null,null,null,null,null,null,null,null,null,null,null,"Total","Wholesale","Retail"]
["54361910","lululemon:  Back To Life Sport Bottle 24oz","0AA","Pink Pastel","",null,null,11.0,44.0,null,null,null,null,10.0,null,null,null,null,null,null,null,null,null,null,null,null,{"$f":"SUM(L924:P924)","v":10},{"$f":"ROUND(AA924*H924,2)","v":110},{"$f":"ROUND(AA924*I924,2)","v":440}]
[null,"Silicon, Polypropylene, Steel","A55","Silver Drop",null,null,null,11.0,44.0,null,null,null,null,12.0,null,null,null,null,null,null,null,null,null,null,null,null,12,132,528]
[null,null,"088","Misty Pink",null,null,null,11.0,44.0,null,null,null,null,12.0,null,null,null,null,null,null,null,null,null,null,null,null,12,132,528]
[null,null,"A52","Ink Blue",null,null,null,11.0,44.0,null,null,null,null,12.0,null,null,null,null,null,null,null,null,null,null,null,null,12,132,528]
[null,null,"A56","Tonic Sea",null,null,null,11.0,44.0,null,null,null,null,12.0,null,null,null,null,null,null,null,null,null,null,null,null,12,132,528]
[null,null,null,null,null,null,null,null,null,null,null,null,null,null,null,null,null,null,null,null,null,null,null,null,null,null,0,0,0]
[null,null,null,null,null,null,null,null,null,null,null,null,null,"One Size",null,null,null,null,null,null,null,null,null,null,null,null,"Total","Wholesale","Retail"]
["5487073","lululemon: Stay Hot Keep Cold Bottle 32oz","001","Black","",null,null,12.0,48.0,null,null,null,null,15.0,null,null,null,null,null,null,null,null,null,null,null,null,{"$f":"SUM(L931:P931)","v":15},{"$f":"ROUND(AA931*H931,2)","v":180},{"$f":"ROUND(AA931*I931,2)","v":720}]
[null,"Silicon, Polypropylene, Steel"]
[]
[]
[]
[]
[null,null,null,null,null,null,null,null,null,null,null,null,null,"One Size",null,null,null,null,null,null,null,null,null,null,null,null,"Total","Wholesale","Retail"]
["54507041","lululemon: Purist Team Bottle 32oz","001","Black","",null,null,5.5,22.0,null,null,null,null,12.0,null,null,null,null,null,null,null,null,null,null,null,null,{"$f":"SUM(L938:P938)","v":12},{"$f":"ROUND(AA938*H938,2)","v":66},{"$f":"ROUND(AA938*I938,2)","v":264}]
[null,"Silicone"]
[]
[]
[]
[]
[]
[]
[null,null,null,null,null,null,null,null,null,null,null,null,null,null,null,null,null,null,null,null,null,null,null,null,null,null,null,null,null,"Subtotal for Water Bottles:",{"$f":"ROUND(SUM(AA915:AA945),2)","v":136},1419.5,5678]
[]
[]
[]
[]
[null,null,null,null,null,null,null,null,null,null,null,null,null,null,null,null,null,null,null,null,null,null,null,null,null,"Grand Total:",{"$f":"ROUND(SUM(AA5:AA950),2)","v":7806},181249.5,724998]
[]
[]
[]
[]
[]
[]
[]
[]
[]
[]
[]
[]
[]
[]
[]
[]
[]
[]
[]
[]
[]
[]
[]
[]
[null,null,null,null,""]
[]
[]
[]
[]
[]
[]
[null,null,null,null,""]
[]
[]
[]
[]
[]
[]
[null,null,null,null,""]
[]
[]
[]
[]
[]
[]
[]
[]
[]
[]
[]
[]
[]
[null,null,null,null,""]
[]
[]
[]
[]
[]
[]
[null,null,null,null,""]
[]
[]
[]
[]
[]
[]
[null,null,null,null,""]
[]
[]
[]
[]
[]
[]
[]
[]
[]
[null,null,null,null,""]
[null,null,null,null,""]
[]
[]
[]
[]
[]
[]
[null,null,null,null,""]
[null,null,null,null,"",null,null,null,null,null,null,null,null,null,null,null,null,null,null,null,null,null,null,null,null,null,null,null,null,{"$f":"L975:AD1037","v":"#VALUE!"}]
[]
[null,null,null,null,null,null,null,null,null,null,null,null,null,null,null,null,{"$f":"K1018:Q1039","v":"#VALUE!"}]

{"sheet":"Order Form Dialog","index":2,"n_rows":0,"n_cols":0,"rows_kept":0,"cut":false,"hidden":false,"merged":[]}

{"sheet":"Compatibility Report","index":3,"n_rows":8,"n_cols":6,"rows_kept":8,"cut":false,"hidden":false,"merged":[]}
[null,"Compatibility Report for Term Project_lululemon.xls"]
[null,"Run on 2020-09-13 23:26"]
[]
[null,"The following features in this workbook are not supported by earlier versions of Excel. These features may be lost or degraded when opening this workbook in an earlier version of Excel or if you save this workbook in an earlier file format."]
[]
[null,"Minor loss of fidelity",null,null,"# of occurrences","Version"]
[]
[null,"Some cells or styles in this workbook contain formatting that is not supported by the selected file format. These formats will be converted to the closest format available.",null,null,18.0,"Excel 97-2003"]